{"text_format":"1","workbook":"xlsx","n_sheets":17,"sheets":["Data Input","Split Info","Implicit Rate info","How to Enable Macros","Example - PV Calc","Lease 1 - PV Calc","Lease 2 - PV Calc","Lease 3 - PV Calc","Lease 4 - PV Calc","Lease 5 - PV Calc","Lease 6 - PV Calc","Lease 7 - PV Calc","Lease 8 - PV Calc","Lease 9 - PV Calc","Lease 10 - PV Calc","VLookup","Drop Down List"],"not_rendered":{"charts":0,"images":2,"macros":1,"external_links":1,"defined_names":140,"comments":0,"pivot_tables":0},"unopened":[],"bounds":{"document_bytes":16777216,"sheet_cells":100000,"rows_first":2000,"rows_last":500,"rows_between":2000,"halvings":0,"cell_chars":16384,"cell_head_chars":4096},"cells_cut":0,"cells_raw":0,"read":"whole","date_system":"1900"}

{"sheet":"Data Input","index":0,"n_rows":272,"n_cols":12,"rows_kept":272,"cut":false,"hidden":false,"merged":[[202,7,209,7],[202,8,209,8],[202,9,209,9],[202,10,209,10],[202,11,209,11],[202,2,209,2],[202,3,209,3],[202,4,209,4],[202,5,209,5],[202,6,209,6],[178,3,181,3],[198,0,199,0],[204,0,205,0],[206,0,208,0],[202,0,203,0],[202,1,209,1],[196,0,197,0],[189,1,197,1],[189,2,197,2],[189,3,197,3],[165,1,167,1],[165,2,167,2],[165,3,167,3],[189,4,197,4],[178,9,181,9],[178,10,181,10],[178,11,181,11],[190,0,193,0],[194,0,195,0],[189,5,197,5],[189,6,197,6],[189,7,197,7],[189,8,197,8],[189,9,197,9],[189,10,197,10],[189,11,197,11],[178,4,181,4],[178,5,181,5],[178,6,181,6],[178,7,181,7],[178,8,181,8],[179,0,180,0],[178,1,181,1],[178,2,181,2],[171,8,175,8],[171,9,175,9],[171,10,175,10],[171,11,175,11],[165,5,167,5],[165,6,167,6],[165,7,167,7],[165,8,167,8],[165,9,167,9],[173,0,175,0],[171,0,172,0],[171,1,175,1],[171,2,175,2],[171,3,175,3],[171,4,175,4],[171,5,175,5],[171,6,175,6],[171,7,175,7],[165,4,167,4],[149,9,150,9],[149,10,150,10],[149,11,150,11],[157,0,158,0],[157,1,158,1],[157,2,158,2],[157,3,158,3],[157,4,158,4],[157,5,158,5],[157,6,158,6],[157,7,158,7],[157,8,158,8],[157,9,158,9],[157,10,158,10],[157,11,158,11],[149,4,150,4],[149,5,150,5],[149,6,150,6],[149,7,150,7],[149,8,150,8],[165,10,167,10],[165,11,167,11],[165,0,167,0],[132,0,133,0],[149,0,150,0],[149,1,150,1],[149,2,150,2],[149,3,150,3],[123,10,125,10],[123,11,125,11],[126,1,128,1],[126,2,128,2],[126,3,128,3],[126,4,128,4],[126,5,128,5],[126,6,128,6],[126,7,128,7],[126,8,128,8],[126,9,128,9],[126,10,128,10],[126,11,128,11],[123,5,125,5],[123,6,125,6],[123,7,125,7],[123,8,125,8],[123,9,125,9],[110,0,113,0],[123,1,125,1],[123,2,125,2],[123,3,125,3],[123,4,125,4],[88,10,89,10],[88,11,89,11],[90,0,91,0],[105,0,106,0],[105,1,106,1],[105,2,106,2],[105,3,106,3],[105,4,106,4],[105,5,106,5],[105,6,106,6],[105,7,106,7],[105,8,106,8],[105,9,106,9],[105,10,106,10],[105,11,106,11],[88,5,89,5],[88,6,89,6],[88,7,89,7],[88,8,89,8],[88,9,89,9],[88,0,89,0],[88,1,89,1],[88,2,89,2],[88,3,89,3],[88,4,89,4],[79,8,83,8],[79,9,83,9],[79,10,83,10],[79,11,83,11],[86,0,87,0],[86,1,87,1],[86,2,87,2],[86,3,87,3],[86,4,87,4],[86,5,87,5],[86,6,87,6],[86,7,87,7],[86,8,87,8],[86,9,87,9],[86,10,87,10],[86,11,87,11],[79,3,83,3],[79,4,83,4],[79,5,83,5],[79,6,83,6],[79,7,83,7],[81,0,82,0],[79,0,80,0],[79,1,83,1],[79,2,83,2],[76,9,78,9],[76,10,78,10],[76,11,78,11],[71,4,75,4],[71,5,75,5],[71,6,75,6],[71,7,75,7],[71,8,75,8],[72,0,73,0],[74,0,75,0],[71,1,75,1],[71,2,75,2],[77,0,78,0],[76,1,78,1],[76,2,78,2],[76,3,78,3],[76,4,78,4],[76,5,78,5],[76,6,78,6],[76,7,78,7],[76,8,78,8],[71,3,75,3],[66,8,68,8],[66,9,68,9],[66,10,68,10],[66,11,68,11],[62,2,64,2],[62,3,64,3],[62,4,64,4],[62,5,64,5],[62,6,64,6],[62,7,64,7],[62,8,64,8],[62,9,64,9],[62,10,64,10],[62,11,64,11],[66,3,68,3],[66,4,68,4],[66,5,68,5],[66,6,68,6],[66,7,68,7],[71,9,75,9],[71,10,75,10],[71,11,75,11],[53,0,54,0],[53,2,54,2],[62,0,64,0],[62,1,64,1],[67,0,68,0],[66,1,68,1],[66,2,68,2],[0,0,0,1],[1,0,1,1],[2,0,2,1],[3,0,3,1],[4,0,4,1],[9,0,10,0],[9,1,16,1],[19,0,21,0],[24,0,26,0],[27,0,28,0],[41,0,42,0],[29,0,30,0],[29,1,30,1],[32,0,33,0],[34,0,35,0],[36,0,37,0],[211,0,212,0],[219,0,220,0],[219,1,220,1],[219,2,220,2],[219,3,220,3],[219,4,220,4],[219,5,220,5],[219,6,220,6],[219,7,220,7],[219,8,220,8],[219,9,220,9],[219,10,220,10],[219,11,220,11],[227,0,228,0],[223,0,226,0],[223,1,229,1],[223,2,229,2],[223,3,229,3],[223,4,229,4],[223,5,229,5],[223,6,229,6],[223,7,229,7],[223,8,229,8],[223,9,229,9],[223,10,229,10],[223,11,229,11],[232,1,235,1],[232,2,235,2],[232,3,235,3],[232,4,235,4],[232,5,235,5],[232,6,235,6],[232,7,235,7],[232,8,235,8],[232,9,235,9],[232,10,235,10],[232,11,235,11],[237,10,238,10],[237,11,238,11],[241,0,242,0],[241,1,243,1],[241,2,243,2],[241,3,243,3],[241,4,243,4],[241,5,243,5],[241,6,243,6],[241,7,243,7],[241,8,243,8],[241,9,243,9],[241,10,243,10],[237,1,238,1],[237,2,238,2],[237,3,238,3],[237,4,238,4],[237,5,238,5],[237,6,238,6],[237,7,238,7],[237,8,238,8],[237,9,238,9],[241,11,243,11],[248,0,249,0],[250,0,251,0],[250,1,251,1],[250,2,251,2],[250,3,251,3],[250,4,251,4],[250,5,251,5],[250,6,251,6],[250,7,251,7],[250,8,251,8],[250,9,251,9],[250,10,251,10],[250,11,251,11],[252,9,253,9],[252,10,253,10],[252,11,253,11],[269,0,270,0],[269,1,271,1],[269,2,271,2],[269,3,271,3],[269,4,271,4],[269,5,271,5],[269,6,271,6],[269,7,271,7],[269,8,271,8],[269,9,271,9],[269,10,271,10],[269,11,271,11],[252,0,253,0],[252,1,253,1],[252,2,253,2],[252,3,253,3],[252,4,253,4],[252,5,253,5],[252,6,253,6],[252,7,253,7],[252,8,253,8]]}
["STATE OF ARIZONA"]
["CLOSING PACKAGE"]
["N - GASB 87 LEASES - Form 72a"]
["Collection Form for FY2025 Receivable Leases"]
["(State as LESSOR)"]
[" ----- Due Date 8/8/2025 -----"]
["This FILLABLE form is designed to capture your agency's GASB 87 lease information for NEW leases entered into during FY2025."]
[]
["Reporting background:   "]
["Please complete this template for every lease that qualifies as a GASB 87 Lease AND has a start date during FY2025\n(July 1, 2024 - June 30, 2025).","Closing Package Information -\nSection N - Leases"]
[]
["For example:"]
["- Receivable leases where the State is the LESSOR,"]
["- Meets scope requirements and is not listed as specifically EXCLUDED,"]
["- Total payments to be received are greater than the Materiality Threshold of $500,000, and"]
["- Has a Maximum Possible Lease Term of more than 12 months."]
["You should have completed Form 72 - \"Decision Form for Lessor\" first to verify qualifications (link at right):"]
[]
["STEPS:"]
["1.  Collect the Lease Contracts and other information for all NEW Leases entered into during FY2025 and document whether\n      they qualify as GASB 87 Leases (through the Lessor Decision Form).  If any leases qualify as GASB 87 Leases, then this\n      Lease Collection Form must be completed."]
[]
[]
["2.  Save a copy of this Lease Collection Form and rename with your Agency's 3 letter ID"]
["(for example, \"ADA Form 72a - Collection Form for Lessor - FY2025\")."]
["3.  Complete the following sections by entering in the applicable information for each lease within a separate column\n     (starting with column C).  There are 10 columns provided.  If you have more than 10 GASB 87 Receivable Leases,\n     duplicate the form & label as needed (1 of 2, 2 of 2, or 1 of 3, 2 of 3, 3 of 3, etc)."]
[]
[]
["4.  Maintain all documentation and supporting workpapers to support your conclusion for audit purposes in a permanent file\n     (i.e. Lease Contracts, Decision Form, and this Lease Collection Form)."]
[]
["5.  Return a copy of this Lease Collection Form to the ACFR e-mail address at right by the Due Date listed above (copy and paste\n      address).","ACFR@azdoa.gov "]
[]
[]
["Note 1 - The Blue highlighted cells are for manual or drop-down input. The Orange highlighted cells contain formulas and will automatically fill. Please do not change the orange cells."]
[]
["Note 2 - Do not insert new columns or rows.  As noted above, if you have more than 10 leases, duplicate the form instead of inserting new columns."]
[]
["Note 3 - Several sections below mention the criteria, 'Reasonably Certain'. To be reasonably certain means that there is a greater than probable chance an event will take place."]
[]
[]
["For details on GASB 87, see the GASB 87 Statement on the GASB website, link at right:","GASB Statement 87"]
[]
["For additional questions on any of the above steps (including filling out this form), please send questions to the ACFR e-mail address above."]
[]
[]
["I.  Agency Information"]
["(Only need to fill out this section once for entire worksheet)"]
["Agency three letter ID in AZ360 (Example: Arizona Department of Administration = ADA):"]
["Preparer Name:"]
["Preparer E-mail:"]
["Preparer Phone:"]
["Date Completed:"]
["Approved by:"]
[]
["How many GASB 87 Receivable Leases were entered into during FY2024?\nIf more than 10, the agency will need to fill out multiple forms (label them 1 of 2, 2 of 2,  or 1 of 3, 2 of 3, 3 of 3, etc)"]
[]
[]
["II.  General Information","Example (complex)","Lease # 1","Lease # 2","Lease # 3","Lease # 4","Lease # 5","Lease # 6","Lease # 7","Lease # 8","Lease # 9","Lease # 10"]
["1.  Contract # (If unknown or unassigned, please create your own.)","ABC 123"]
[]
["2.  Name of the party you are leasing to (Lessee):","ABC Land Development"]
[]
["3.  Short Description of the Leased Asset or Address of the Leased Property"]
["a.  If leasing a building/office space, land or right-of-way, enter the full address of the leased property.  For equipment or\n     something else, provide a description of the leased asset (for example:  HP 4700 Copier on 3rd floor or 2021 Ford F150\n     truck, VIN #ABC123).","1234 Beaver St, Suite 300, Mayberry, AZ  86123"]
[]
[]
[]
["b.  What is the purpose of the lease?"]
["This is a required disclosure per GASB 87.  For example, Land Kease on Lake Pleasant for boat rentals, or Right-of-way Lease for water/sewage system"]
[]
[]
["4.  Is the lease any of the following (for disclosure only):"]
["a.  Sublease - initially the State agency leases an asset from a third party, but then leases the asset out to another party.","No"]
["Example:  A state agency leases a floor in a building from a vendor and rents a room to another entity. The State acts as both Lessee and Lessor."]
[]
["Since the other parties involved are 2 different entities, both sides of the lease must be reported separately and should NOT be netted together."]
[]
["b.  Sale-leaseback - the sale of a property with an agreement that the property will then be leased back.","No"]
["Example:  A non-state entity sells a piece of property to a state agency with the contractual agreement that the non-state entity will lease the asset back. The state agency is the Purchasor and the Lessor."]
[]
["c.  Lease-leaseback - the lease of a property to a tenant with the agreement that the property will then be leased back from that\n     same party.","No"]
[]
["Example: A state agency owns a piece of land and leases it to a non-state company. The agreement obligates the company to build an office and lease it back to the state agency.  The State acts as both Lessee and Lessor."]
[]
["In this case, since the other party is the same entity, the lease proceeds and payouts will be netted for reporting purposes."]
["If any of the 3 questions above are answered Yes, you will be contacted by the GAAP Group for additional info."]
[]
["5.  Is the entire lease payment received recorded 100% into a single Chart of Accounts string (COA) or Divided between Funds or\n     Agencies?","Divided - Fill out Gen Extra Info Tab"]
[]
["If the receipt of payment is divided, then please switch to the \"Split Info\" Tab to fill out the deposit split info (click on hyperlink to the right for correct corresponding Lease # column).","Example - Split Info","Lease # 1 - Split Info","Lease # 2 - Split Info","Lease # 3 - Split Info","Lease # 4 - Split Info","Lease # 5 - Split Info","Lease # 6 - Split Info","Lease # 7 - Split Info","Lease # 8 - Split Info","Lease # 9 - Split Info","Lease # 10 - Split Info"]
[]
["If the receipt of payment is recorded into a single COA, please provide the following COA Elements below.  REQUIRED elements are starred (*). Use any other COA indicated below that will help identify the receipt of payments for each lease."]
[]
["Agency *","see Split Info Tab"]
["Fund *"]
["Revenue Source *"]
["Appropriation"]
["Unit"]
["Task"]
["Sub Task"]
["Program"]
["Phase"]
["Program Period"]
[]
["III.  Asset Information"]
["6.  Asset type that is being leased out"]
["Using the drop down list, select the Asset Type that is being leased. If the leased asset type is not listed, please choose a description that is closest to your leased asset (or contact the GAAP Group for further assistance).","Leased Constructed Buildings (Office Space) "]
[]
[]
["7.  Return of the Asset"]
["Does the contract require the lessee to return the asset in its original or enhanced condition?","No"]
["If above question is answered Yes, then GASB 87 requires that the asset accumulate NO DEPRECIATION during the lease period as it is expected to be returned in the original or enhanced condition.  If, however, there is a residual value guarantee set at a value lower than its original value at commencement of the lease, depreciation should still be calculated.  If the asset is Land, then there should not be any depreciation regardless."]
[]
[]
[]
[]
["8.  What is the asset number listed on the AZ360 Financial System (if not in AZ360, please explain)?","AD1000"]
[]
["IV.  Deferred Inflow of Resources"]
["9.  Measurement of Deferred Inflow of Resources"]
["Per GASB 87, Deferred Inflow of Resources = "]
["+ Initial Lease Receivable (calculated in PV Calc tab)"]
["+ Lease payments received from the lessee at or before start of lease that relate to future periods (see (a) below)"]
["- Lease incentives paid to the lessee at or before start of lease (see (b) below)"]
["a.  Enter the amount the Lessee paid to the State (Lessor) at or before the start of the lease that relates to future periods.",302000]
["- For example, the final month's rent"]
["- Do NOT include downpayments (above first required payment) as those are not related to a future period"]
["b.  Enter the amount the State (Lessor) provided as incentives at or before the start of the lease.",15000]
["- For example, paying a preexisting lease obligation to a third party in order to gain the lease, or"]
["- Reimbursements of lessee's costs (installation costs, moving costs, etc)"]
[]
["10.  If any amounts are entered in 9(a) or (b), please describe (indicate which question you are answering if more than one)","(a) Last month's rent, (b) Reimbursed moving costs to Lessee"]
[]
["11.  If any amounts are entered in 9(a) or (b), provide the COA Elements below where the payment from the lessee (or\n        incentive paid by the State (Lessor)) was posted.  REQUIRED elements are starred (*):"]
[]
["NOTE - if more than one, indicate with the corresponding letter (i.e. Fund:  (a) 1000, (b) AD1200)"]
["Agency *","(a & b) ADA"]
["Fund *","(a & b) 1000"]
["Object or Revenue Source (please indicate which one) *","(a) R - 4632, (b) O - 7599"]
["Appropriation"]
["Unit"]
["Task"]
["Sub Task"]
["Program"]
["Phase"]
["Program Period"]
["Dept Object"]
[]
["V.  Lease Term"]
["12.  Lease commencement date"]
["Lease Start Date - because this form is specifically for New leases entered into during FY2025, the dates should be between\nJuly 1, 2024 and June 30, 2025.","2024-10-01"]
[]
[]
["13.  Contracted lease term"]
["Lease End Date - Enter the date the contracted lease term ends.","2034-09-30"]
["Lease Term in months (will automatically fill) - HIDE THIS LINE IN FINAL VERSION",{"$f":"ROUND(DATEDIF((B150),B154,\"M\"),0)+1","v":120},{"$f":"ROUND(DATEDIF((C150),C154,\"M\"),0)+1","v":1},{"$f":"ROUND(DATEDIF((D150),D154,\"M\"),0)+1","v":1},1,1,1,1,1,1,1,1]
[]
["14.  Options to extend term"]
["If lease extensions are available in the contract, AND the agency believes the lessee is reasonably certain to exercise it, enter # of months available to extend the lease.",60]
[]
[]
["15.  Lease End Date including Extensions (will automatically fill).",{"$f":"EDATE(B154,B158)","v":"2039-09-30"},{"$f":"EDATE(C154,C158)","v":"00:00:00"},{"$f":"EDATE(D154,D158)","v":"00:00:00"},"00:00:00","00:00:00","00:00:00","00:00:00","00:00:00","00:00:00","00:00:00","00:00:00"]
[]
["16.  Total Lease Term including Extensions in Months (will automatically fill).",{"$f":"B155+B158","v":180},1,{"$f":"D155+D158","v":1},1,1,1,1,1,1,1,1]
[]
["17.  Frequency of lease payments"]
["Enter how often lease payments are made (Monthly, Quarterly, Semi-Annually, Annually).  If payments are Less Often than Annually, choose Annually from the dropdown list here (frequency must be at least Annually for Present Value Calculation to work).  There is a space in the PV Calc tab to describe the payment frequency if Less Often than Annually (#1f).","Semi-annually"]
[]
[]
["# of pmts/yr - HIDE THIS LINE IN FINAL VERSION",{"$f":"IF(B166=\"Weekly\",52,IF(B166=\"Monthly\",12,IF(B166=\"Quarterly\",4,IF(B166=\"Semi-Annually\",2,1))))","v":2},{"$f":"IF(C166=\"Weekly\",52,IF(C166=\"Monthly\",12,IF(C166=\"Quarterly\",4,IF(C166=\"Semi-Annually\",2,1))))","v":1},1,{"$f":"IF(E166=\"Weekly\",52,IF(E166=\"Monthly\",12,IF(E166=\"Quarterly\",4,IF(E166=\"Semi-Annually\",2,1))))","v":1},1,1,1,1,1,1,1]
[]
["18.  Number of Payments - How many payments from lease start date (#12) to lease end date including extensions (#15)?"]
["-  If payments are monthly, this answer will most likely be the same as the calculated number of months.  Please calculate\n   carefully if payments are not monthly.",30]
[]
["- If payments are Less Often than Annually, list the # of years of the lease term rather than the total # of payments (e.g.\n   payment frequency every 5 years with a 20 year term would have a total of 4 payments, but enter 20 here instead of 4).\n   Again, this is necessary for the Present Value Calculation to work.  If this is the case, read PV Calc instructions (#1g) carefully."]
[]
[]
[]
["19.  Was the first lease payment received at the beginning or at the end of the first payment period?"]
["- A period is the length of time between payments (see #17 freequency of payments)","Begin"]
["- For example, lease began on 4/01 with monthly payments and first payment was due 4/30, then it would be the end of the first\n   payment period.\n"]
[]
["- For a quarterly period, payment within first 45 days would be beginning of the period."]
["Coding for Formulas - Begin = 1, End = 0 - HIDE THIS LINE IN FINAL VERSION",{"$f":"IF(B179=\"Begin\",1,0)","v":1},{"$f":"IF(C179=\"Begin\",1,0)","v":0},0,{"$f":"IF(E179=\"Begin\",1,0)","v":0},0,0,0,0,0,0,0]
[]
["20.  When is the first payment due (most likely would be within FY2025)?","2024-10-15"]
[]
["VI.  Lease Receivable"]
["Lease payment to be received - PLEASE SEPARATE PAYMENTS TO BE RECEIVED BETWEEN #21, #22 & #23 as much as possible:"]
["21.  Fixed Lease payment - Enter FIRST Fixed Lease Payment Amount here"]
["To calculate the Fixed Lease Payment:",282000]
["(a) Enter the amount of the fixed lease portion of the payment.  If the payment includes utilities, taxes, service costs,\n      etc, and it is not reasonable to separate these portions from the total payment, then enter the total lease\n      payment.  If the above listed items are separated in the contract, they should not be included in the lease\n      payment here but detailed below."]
[]
[]
[]
["(b) In addition, also include \"Fixed In-Substance Fees\" with the lease payment (see definition below under variable\n      payments)."]
[]
["(c) For payments that depend on an index or a rate (such as the Consumer Price Index or a market interest rate),\n      the payment should be initially measured using the index or rate as of the start of the lease."]
[]
["Because payments may not remain the same throughout the lease term, fill out the Payment Schedule on the PV Calc tab.\nA space is provided (#1f) to describe how often payments increase, formulas, appraisal requirements, etc."]
[]
[]
["22.  Variable Usage Fees over and above Fixed In-Substance Fees (Do NOT include variable fees on PV Calc Tab):"]
["Variable Usage Fees are based on future unknwn factors such as water usage, wattage produced, gross receipts over a certain period of time, etc.","Water usage calculated by # of cubic feet - billed twice annually"]
[]
["- \"Fixed in-Substance Fees\" are the Mimimum Usage Costs of a variable usage fee and should be included in the fixed lease\n   payment portion above."]
[]
["- For Example, if a retail store has a 0.01% of gross receipts variable monthly fee, but minimum is $1,500, then $1,500 is\n   the \"Fixed In-Substance Fee\" and should be added to fixed lease portion above, and the variable answer here would\n   be \"0.01% of gross receipts over $150,000 monthly due to $1,500 minimum\" ($1,500 is equal to 0.01% * $150,000)."]
[]
[]
["- For disclosure purposes, please describe how the variable useage fee is determined."]
[]
["23.  Utilities, Taxes, Service costs (janitorial or maintenance agreements), or Other additional charges\n       (do NOT include as part of Fixed Lease Payments on PV Calc tab)"]
[]
["a.  Enter the amount for any additional charges identified, if paid to the lessor and is separately identified in the lease agreement.",{"$f":"282000*0.025","v":7050}]
[]
["b.  Please briefly describe the additional charges.","2.5% occupancy tax"]
[]
["24.  Residual Value Guarantee:"]
["a.  Does the lease contain a residual value guarantee?"]
["For example, does the lease specify the asset must be returned in a certain condition to avoid a penalty, or must have a certain minimum fair value upon return to the lessor?","No"]
[]
[]
["b.  If so, is the residual value guarantee payment fixed in substance? (i.e. not contingent on a future event)."]
["For example, a residual value guarantee could have both a minimum amount to be paid upon termination of the lease plus a contingent fee based on the future value of the asset upon termination of the lease.  If the residual value guarantee has no minimum, but is fully contingent on the future value, then it is not fixed in substance and should NOT be included in the Lease Receivable calculation.","N/A"]
[]
[]
[]
["This is different than on a payable lease where the inclusion in the liability is based on a reasonably certain occurence, not a fixed in substance occurrence."]
[]
["If Yes, then please enter the amount of the Fixed in Substance Residual Value Guarantee on the PV Calc Tab."]
[]
["25.  Lease incentives (during lease term):"]
["a.  Does the lease agreement contain lease incentives that will occur AFTER the start of the lease term?","Yes"]
["- For example, Abated or Free Rent periods,"]
["- Reductions in rent,"]
["- Bonus amounts paid from the lessor to the lessee, etc?"]
[]
["b.  If Yes, please describe:","Free Rent Period for pmt due 10/15/2025"]
["Please read instructions on PV Calc tab carefully on how to include lease incentives in the Payment Schedule (#1d & 1e)."]
[]
["26.  Estimated Uncollectible Amounts"]
["Based on current economic factors, lessee's credit rating, historical information from this or other lessees, does the agency feel that there may be uncollectible amounts related to this lease agreement?","Yes - Fill out PV Calc Tab"]
[]
["If Yes, then please enter the Allowance for Uncollectible Leases on the PV Calc Tab."]
[]
["VII.  Interest Rate"]
["27.  Enter the interest rate for lease (with four digits past the decimal) using one of the three methods listed below:"]
["a.  If the interest rate is specifically identified in the contract (explicit rate), use this rate."]
["b.  If the explicit rate is unknown, there may be an implicit rate  (please see Implicit Rate info tab for additional information\n      and a place to enter the information to calculate it)."]
[]
["c.  If both the explicit interest rate and implicit rate are unknown, identify the interest rate in the table below using the\n      lease term (total lease term in months is copied here from #16 above for ease of reference).",{"$f":"B163","v":180},1,1,1,1,1,1,1,1,1,1]
[]
["For example: If initial contract term was 5 years (60 months) plus a 4-year (48 month) extension,  for a total of 9 years (108 months) use the Long-Term rate below.",3.3234E-2]
[]
[]
[]
[]
[]
[]
["The interest rates have been updated for"]
["FY2025 & will be reassessed each year."]
["Short-Term in months = 0 - 59 months"]
["Mid-Term in months = 60 - 107 months"]
["Long-Term in months = 108 months or longer"]
[]
["28.  Periodic Interest Rate - based on frequency of payments (will automatically fill)",{"$f":"ROUND(B253/B169,6)","v":1.6617E-2},0,0,0,0,0,0,0,0,0,0]
[]
["VIII.  Calculate the Lease Liability"]
["29.  Fill out the Lease Payment Schedule on the \"PV Calc\" tab corresponding to the correct Lease #."]
["The Present Value of the Lease Receivable, Amortization Table and Deferred Inflow of Resources will be calculated in each respective PV Calc tab.  These are calculated with macros, and are not required to be completed by the agencies.","Example (complex)","Lease 1 - PV Calc","Lease 2 - PV Calc","Lease 3 - PV Calc","Lease 4 - PV Calc","Lease 5 - PV Calc","Lease 6 - PV Calc","Lease 7 - PV Calc","Lease 8 - PV Calc","Lease 9 - PV Calc","Lease 10 - PV Calc"]
[]
["- At a minimum, the Lease Payment Schedule must be completed."]

{"sheet":"Split Info","index":1,"n_rows":135,"n_cols":12,"rows_kept":135,"cut":false,"hidden":false,"merged":[[0,0,0,1],[2,0,2,1],[4,0,5,1],[6,0,7,1],[12,10,14,10],[12,11,14,11],[20,0,21,0],[34,0,35,0],[48,0,49,0],[12,5,14,5],[12,6,14,6],[12,7,14,7],[12,8,14,8],[12,9,14,9],[12,0,13,0],[12,1,14,1],[12,2,14,2],[12,3,14,3],[12,4,14,4],[62,0,63,0],[80,0,81,0],[94,0,95,0],[108,0,109,0],[122,0,123,0]]}
["GASB 87 Lease Collection Form - Split Info - for Leases receiving payments into multiple COAs"]
[]
["If the lease payments received are recorded within more than one Chart of Accounts (COA) string, please complete the information below. "]
[]
["Note 1 - The blue highlighted cells are for manual or drop-down input. The orange highlighted cells contain formulas and will automatically fill. Please do not change the orange cells."]
[]
["Note 2 - When payments are split between multiple COAs, please ONLY provide split information for the Fixed amount to be received.  Please exclude any variable payments or payments for services, maintenance, taxes, etc that are identified separately within the lease contract."]
[]
[]
["Use the SAME COLUMN here as was used in the \"Data Input\" tab.","Example","Lease # 1","Lease # 2","Lease # 3","Lease # 4","Lease # 5","Lease # 6","Lease # 7","Lease # 8","Lease # 9","Lease # 10"]
["Contract # from Data Input tab (will fill automatically)",{"$f":"'Data Input'!B58","v":"ABC 123"},{"$f":"'Data Input'!C58","v":0},{"$f":"'Data Input'!D58","v":0},{"$f":"'Data Input'!E58","v":0},{"$f":"'Data Input'!F58","v":0},{"$f":"'Data Input'!G58","v":0},{"$f":"'Data Input'!H58","v":0},{"$f":"'Data Input'!I58","v":0},{"$f":"'Data Input'!J58","v":0},{"$f":"'Data Input'!K58","v":0},{"$f":"'Data Input'!L58","v":0}]
[]
["Is the payment received divided by a Percentage (%), or a Specific Dollar ($) Amount (i.e. 50% posted to one COA string, and 50% posted to another; or first $1,000 posted to one COA string and the rest posted to another)?","Percentage (%) Split"]
[]
["Based on your answer, please fill out the proper section below (Percentage Split or Dollar Amount Split)"]
[]
["Percentage (%) Split:"]
["How many different sets of COAs are there?",2]
[]
["1.  Percentage of payment received for First COA",0.7]
["Please provide COA below.  REQUIRED elements are starred (*). Use any other COA indicated below that will help identify the payments received for each lease."]
[]
["1a.  Agency *","ADA"]
["1b.  Fund *","AD1234"]
["1c.  Revenue Source *",4632]
["1d.  Appropriation"]
["1e.  Unit"]
["1f.  Task"]
["1g.  Sub Task"]
["1h.  Program"]
["1i.  Phase"]
["1j.  Program Period"]
[]
["2.  Percentage of payment received for Second COA",0.3]
["Please provide COA below.  REQUIRED elements are starred (*). Use any other COA indicated below that will help identify the payments received for each lease."]
[]
["2a.  Agency *","DCA"]
["2b.  Fund *","DC4567"]
["2c.  Revenue Source *",4632]
["2d.  Appropriation"]
["2e.  Unit "]
["2f.  Task "]
["2g.  Sub Task"]
["2h.  Program"]
["2i.  Phase"]
["2j.  Program Period"]
[]
["3.  Percentage of payment received for Third COA"]
["Please provide COA below.  REQUIRED elements are starred (*). Use any other COA indicated below that will help identify the payments received for each lease."]
[]
["3a.  Agency *"]
["3b.  Fund *"]
["3c.  Revenue Source *"]
["3d.  Appropriation"]
["3e.  Unit "]
["3f.  Task "]
["3g.  Sub Task"]
["3h.  Program"]
["3i.  Phase"]
["3j.  Program Period"]
[]
["4.  Percentage of payment received for Fourth COA"]
["Please provide COA below.  REQUIRED elements are starred (*). Use any other COA indicated below that will help identify the payments received for each lease."]
[]
["4a.  Agency *"]
["4b.  Fund *"]
["4c.  Revenue Source *"]
["4d.  Appropriation"]
["4e.  Unit "]
["4f.  Task "]
["4g.  Sub Task"]
["4h.  Program"]
["4i.  Phase"]
["4j.  Program Period"]
["4k.  Dept Object"]
[]
["Specific Dollar ($) Amount Split:"]
["How many different sets of COAs are there?"]
[]
["1.  Amount of payment received for First COA"]
["Please provide COA below.  REQUIRED elements are starred (*). Use any other COA indicated below that will help identify the payments received for each lease."]
[]
["1a.  Agency *"]
["1b.  Fund *"]
["1c.  Revenue Source *"]
["1d.  Appropriation"]
["1e.  Unit"]
["1f.  Task"]
["1g.  Sub Task"]
["1h.  Program"]
["1i.  Phase"]
["1j.  Program Period"]
[]
["2.  Amount of payment received for Second COA"]
["Please provide COA below.  REQUIRED elements are starred (*). Use any other COA indicated below that will help identify the payments received for each lease."]
[]
["2a.  Agency *"]
["2b.  Fund *"]
["2c.  Revenue Source *"]
["2d.  Appropriation"]
["2e.  Unit "]
["2f.  Task "]
["2g.  Sub Task"]
["2h.  Program"]
["2i.  Phase"]
["2j.  Program Period"]
[]
["3.  Amount of payment received for Third COA"]
["Please provide COA below.  REQUIRED elements are starred (*). Use any other COA indicated below that will help identify the payments received for each lease."]
[]
["3a.  Agency *"]
["3b.  Fund *"]
["3c.  Revenue Source *"]
["3d.  Appropriation"]
["3e.  Unit "]
["3f.  Task "]
["3g.  Sub Task"]
["3h.  Program"]
["3i.  Phase"]
["3j.  Program Period"]
[]
["4.  Amount of payment received for Fourth COA"]
["Please provide COA below.  REQUIRED elements are starred (*). Use any other COA indicated below that will help identify the payments received for each lease."]
[]
["4a.  Agency *"]
["4b.  Fund *"]
["4c.  Revenue Source *"]
["4d.  Appropriation"]
["4e.  Unit "]
["4f.  Task "]
["4g.  Sub Task"]
["4h.  Program"]
["4i.  Phase"]
["4j.  Program Period"]
["4k.  Dept Object"]

{"sheet":"Implicit Rate info","index":2,"n_rows":33,"n_cols":12,"rows_kept":33,"cut":false,"hidden":false,"merged":[[11,0,11,1],[13,0,13,1],[30,0,31,0],[0,0,0,1],[2,0,3,1],[5,0,6,1],[8,0,9,1]]}
["GASB 87 Lease Collection Form - Calculating an Implicit Rate on a Lease"]
[]
["If an interest rate is not explicitely stated within the lease contract, there may be an implicit rate, which can be calculated if the information requested below is available."]
[]
[]
["In addition to the information provided within the Data Input tab (see orange auto-filled cells below), check the lease contract for availability of the 3 additional data items requested below to determine the Implicit Rate."]
[]
[]
["All 3 items requested below are needed to calculate the Implicit Rate.  If this information is unavailable, then use the Discount Rates provided on the Data Input tab (yellow highlighted table)."]
[]
[]
["If ALL of the information requested below is available for a lease, please enter the information within the correct Lease # column below."]
[]
["Note - The blue highlighted cells are for manual input. The orange highlighted cells contain formulas and will automatically fill. Please do not change the orange cells."]
[]
["Use the SAME COLUMN here as was used in the \"Data Input\" tab.","Example","Lease # 1","Lease # 2","Lease # 3","Lease # 4","Lease # 5","Lease # 6","Lease # 7","Lease # 8","Lease # 9","Lease # 10"]
["Contract # from Data Input tab (will fill automatically)",{"$f":"'Data Input'!B58","v":"ABC 123"},{"$f":"'Data Input'!C58","v":0},{"$f":"'Data Input'!D58","v":0},{"$f":"'Data Input'!E58","v":0},{"$f":"'Data Input'!F58","v":0},{"$f":"'Data Input'!G58","v":0},{"$f":"'Data Input'!H58","v":0},{"$f":"'Data Input'!I58","v":0},{"$f":"'Data Input'!J58","v":0},{"$f":"'Data Input'!K58","v":0},{"$f":"'Data Input'!L58","v":0}]
["Cash Flows at Beginning or End (Section V, #19 of Data Input tab)",{"$f":"'Data Input'!B179","v":"Begin"},{"$f":"'Data Input'!C179","v":0},{"$f":"'Data Input'!D179","v":0},{"$f":"'Data Input'!E179","v":0},{"$f":"'Data Input'!F179","v":0},{"$f":"'Data Input'!G179","v":0},{"$f":"'Data Input'!H179","v":0},{"$f":"'Data Input'!I179","v":0},{"$f":"'Data Input'!J179","v":0},{"$f":"'Data Input'!K179","v":0},{"$f":"'Data Input'!L179","v":0}]
["Number of payments (Section V, #18)",{"$f":"'Data Input'!B172","v":30},{"$f":"'Data Input'!C172","v":0},{"$f":"'Data Input'!D172","v":0},{"$f":"'Data Input'!E172","v":0},{"$f":"'Data Input'!F172","v":0},{"$f":"'Data Input'!G172","v":0},{"$f":"'Data Input'!H172","v":0},{"$f":"'Data Input'!I172","v":0},{"$f":"'Data Input'!J172","v":0},{"$f":"'Data Input'!K172","v":0},{"$f":"'Data Input'!L172","v":0}]
["Frequency of payments (Section V, #17)",{"$f":"'Data Input'!B166","v":"Semi-annually"},{"$f":"'Data Input'!C166","v":0},{"$f":"'Data Input'!D166","v":0},{"$f":"'Data Input'!E166","v":0},{"$f":"'Data Input'!F166","v":0},{"$f":"'Data Input'!G166","v":0},{"$f":"'Data Input'!H166","v":0},{"$f":"'Data Input'!I166","v":0},{"$f":"'Data Input'!J166","v":0},{"$f":"'Data Input'!K166","v":0},{"$f":"'Data Input'!L166","v":0}]
["Date of first payment (Section V, #20)",{"$f":"'Data Input'!B185","v":"2024-10-15"},{"$f":"'Data Input'!C185","v":"00:00:00"},{"$f":"'Data Input'!D185","v":"00:00:00"},{"$f":"'Data Input'!E185","v":"00:00:00"},{"$f":"'Data Input'!F185","v":"00:00:00"},{"$f":"'Data Input'!G185","v":"00:00:00"},{"$f":"'Data Input'!H185","v":"00:00:00"},{"$f":"'Data Input'!I185","v":"00:00:00"},{"$f":"'Data Input'!J185","v":"00:00:00"},{"$f":"'Data Input'!K185","v":"00:00:00"},{"$f":"'Data Input'!L185","v":"00:00:00"}]
["Lease Start Date (Section V, #12)",{"$f":"'Data Input'!B150","v":"2024-10-01"},{"$f":"'Data Input'!C150","v":"00:00:00"},{"$f":"'Data Input'!D150","v":"00:00:00"},{"$f":"'Data Input'!E150","v":"00:00:00"},{"$f":"'Data Input'!F150","v":"00:00:00"},{"$f":"'Data Input'!G150","v":"00:00:00"},{"$f":"'Data Input'!H150","v":"00:00:00"},{"$f":"'Data Input'!I150","v":"00:00:00"},{"$f":"'Data Input'!J150","v":"00:00:00"},{"$f":"'Data Input'!K150","v":"00:00:00"},{"$f":"'Data Input'!L150","v":"00:00:00"}]
["Lease End Date including Extensions (Section V, #15)",{"$f":"'Data Input'!B161","v":"2039-09-30"},{"$f":"'Data Input'!C161","v":"00:00:00"},{"$f":"'Data Input'!D161","v":"00:00:00"},{"$f":"'Data Input'!E161","v":"00:00:00"},{"$f":"'Data Input'!F161","v":"00:00:00"},{"$f":"'Data Input'!G161","v":"00:00:00"},{"$f":"'Data Input'!H161","v":"00:00:00"},{"$f":"'Data Input'!I161","v":"00:00:00"},{"$f":"'Data Input'!J161","v":"00:00:00"},{"$f":"'Data Input'!K161","v":"00:00:00"},{"$f":"'Data Input'!L161","v":"00:00:00"}]
[]
["1.  Fair value of the asset at commencement "]
[]
["2.  Lessor's expected fair value of the asset at the end of the lease term"]
[]
["3.  Any initial direct costs that the lessor incurs"]
[]
["IF THE IMPLICIT RATE INFO IS FILLED OUT ABOVE, please enter \"See Implicit Rate Info tab\" within the interest rate cell (Sec VII, #27) on the Data Input tab."]
[]
["With the information provided above, the GAO office will calculate the Implicit Rate and the Present Value of the Lease."]

{"sheet":"How to Enable Macros","index":3,"n_rows":5,"n_cols":1,"rows_kept":5,"cut":false,"hidden":false,"merged":[]}
["YOUR EXCEL TRUST CENTER SETTINGS MUST BE MACRO-ENABLED TO RUN THE MACROS IN THIS FILE."]
["(This file was created in Excel Version 2016)"]
["To enable settings:"]
["Go to File > Options > Trust Center > Trust Center Settings… "]
["Enable all macros and trust access to the VBA project object model as shown below."]

{"sheet":"Example - PV Calc","index":4,"n_rows":139,"n_cols":16,"rows_kept":139,"cut":false,"hidden":false,"merged":[[46,2,49,2],[55,0,57,2]]}
["Present Value Calculations tab - Example (column B)","Contract #",{"$f":"'Data Input'!B58","v":"ABC 123"},null,"Present Value Table",null,null,null,null,"Amortization Table"]
["Periodic Interest Rate (Section VII, #27-28 from Data Input tab)",{"$f":"'Data Input'!B266","v":1.6617E-2},null,null,"Period","Payment Amount","Present Value",null,null,"Period","Date","Beginning Balance","Payment","Principal","Interest","Ending Balance"]
["Cash Flows at Beginning or End (Section V, #19)",{"$f":"'Data Input'!B179","v":"Begin"},"Important:",null,1,282000,{"$f":"F3 / (((1+$B$2)) ^ (E3-1))","v":282000},null,null,1,{"$f":"B6","v":"2024-10-15"},{"$f":"ROUND(B25,2)","v":6569840.8300000001},282000,{"$f":"M3-O3","v":282000},0,{"$f":"L3-N3","v":6287840.8300000001}]
["Number of payments (Section V, #18)",{"$f":"'Data Input'!B172","v":30},"Do not insert/delete/move",null,2,282000,277390.60039326508,null,null,2,{"$f":"EDATE($B$6,6)","v":"2025-04-15"},{"$f":"P3","v":6287840.8300000001},282000,177514.95,{"$f":"ROUND(L4*$B$2,2)","v":104485.05},6110325.8799999999]
["Frequency of payments (Section V, #17)",{"$f":"'Data Input'!B166","v":"Semi-annually"},"cells B2:B8",null,3,282000,272856.54321466695,null,null,3,{"$f":"EDATE($B$6,12)","v":"2025-10-15"},6110325.8799999999,282000,180464.71000000002,101535.29,5929861.1699999999]
["Date of first payment (Section V, #20)",{"$f":"'Data Input'!B185","v":"2024-10-15"},"(macros depend on them)",null,4,282000,268396.59696293384,null,null,4,{"$f":"EDATE($B$6,18)","v":"2026-04-15"},5929861.1699999999,282000,183463.5,98536.5,5746397.6699999999]
["Lease Start Date (Section V, #12)",{"$f":"'Data Input'!B150","v":"2024-10-01"},null,null,5,0,0,null,null,5,{"$f":"EDATE($B$6,24)","v":"2026-10-15"},5746397.6699999999,0,-95487.89,95487.89,5841885.5599999996]
["Lease End Date including Extensions (Section V, #15)",{"$f":"'Data Input'!B161","v":"2039-09-30"},null,null,6,282000,259694.21155278833,null,null,6,{"$f":"EDATE($B$6,30)","v":"2027-04-15"},5841885.5599999996,282000,184925.39,97074.61,5656960.1699999999]
[null,null,null,null,7,282000,255449.40872795586,null,null,7,{"$f":"EDATE($B$6,36)","v":"2027-10-15"},5656960.1699999999,282000,187998.28999999998,94001.71,5468961.8799999999]
["Fixed Lease Payment Receivable Schedule (Section VI, #21 & see instructions below):","Amount","# of Payments",null,8,282000,251273.9888551498,null,null,8,{"$f":"EDATE($B$6,42)","v":"2028-04-15"},5468961.8799999999,282000,191122.26,90877.74,5277839.62]
["Payment Amount #1 & # of Payments at this amount",282000,4,null,9,282000,247166.81784305186,null,null,9,{"$f":"EDATE($B$6,48)","v":"2028-10-15"},5277839.62,282000,194298.14,87701.86,5083541.4800000004]
["Payment Amount #2 & # of Payments at this amount",0,1,null,10,282000,243126.7801375069,null,null,10,{"$f":"EDATE($B$6,54)","v":"2029-04-15"},5083541.4800000004,282000,197526.78999999998,84473.21,4886014.6900000004]
["Payment Amount #3 & # of Payments at this amount",282000,5,null,11,302000,256113.96837728692,null,null,11,{"$f":"EDATE($B$6,60)","v":"2029-10-15"},4886014.6900000004,302000,220809.09,81190.91,4665205.6000000006]
["Payment Amount #4 & # of Payments at this amount",302000,19,null,12,302000,251927.68601871392,null,null,12,{"$f":"EDATE($B$6,66)","v":"2030-04-15"},4665205.6000000006,302000,224478.28,77521.72,4440727.32]
["Totals from add'l table below (if needed)",{"$f":"B88","v":0},{"$f":"C88","v":1},null,13,302000,247809.83007240086,null,null,13,{"$f":"EDATE($B$6,72)","v":"2030-10-15"},4440727.32,302000,228208.43,73791.570000000007,4212518.8900000006]
["Total Lease Payments (sum of all payment amounts * # of payments)",{"$f":"(B11*C11)+(B12*C12)+(B13*C13)+(B14*C14)+(B15)","v":8276000},{"$f":"SUM(C11:C15)","v":30},null,14,302000,243759.2820820435,null,null,14,{"$f":"EDATE($B$6,78)","v":"2031-04-15"},4212518.8900000006,302000,232000.57,69999.429999999993,3980518.3200000008]
[null,null,null,"Response per",15,302000,239774.94187294081,null,null,15,{"$f":"EDATE($B$6,84)","v":"2031-10-15"},3980518.3200000008,302000,235855.72999999998,66144.27,3744662.5900000008]
["Other Payment Considerations:","Residual Value Guar","Allow for Uncollectible Amt","Data Input tab",16,302000,235855.72725317479,null,null,16,{"$f":"EDATE($B$6,90)","v":"2032-04-15"},3744662.5900000008,302000,239774.94,62225.06,3504887.6500000008]
["Residual Value Guarantee if Fixed-in-Substance (Section VI, #24)",0,null,{"$f":"'Data Input'!B224","v":"N/A"},17,302000,232000.57371967498,null,null,17,{"$f":"EDATE($B$6,96)","v":"2032-10-15"},3504887.6500000008,302000,243759.28,58240.72,3261128.370000001]
["Allowance for Uncollectible Leases (Section VI, #26)",null,null,null,18,302000,228208.43416908724,null,null,18,{"$f":"EDATE($B$6,102)","v":"2033-04-15"},3261128.370000001,302000,247809.83000000002,54190.17,3013318.540000001]
["For example, could be calculated as a percentage of the total lease pmt rcvbl above",null,{"$f":"B16*0.002","v":16552},{"$f":"'Data Input'!B242","v":"Yes - Fill out PV Calc Tab"},19,302000,224478.27861336889,null,null,19,{"$f":"EDATE($B$6,108)","v":"2033-10-15"},3013318.540000001,302000,251927.69,50072.31,2761390.850000001]
["Total Other Payment Considerations",{"$f":"SUM(B19:B21)","v":0},null,null,20,302000,220809.09390003202,null,null,20,{"$f":"EDATE($B$6,114)","v":"2034-04-15"},2761390.850000001,302000,256113.97,45886.03,2505276.8800000008]
["Total Undiscounted Cash Flows (Total Payments + Other Considerations)",{"$f":"B16+B22","v":8276000},null,null,21,302000,217199.88343696005,null,null,21,{"$f":"EDATE($B$6,120)","v":"2034-10-15"},2505276.8800000008,302000,260369.81,41630.19,2244907.0700000008]
[null,null,"Important:",null,22,302000,213649.66692172177,null,null,22,{"$f":"EDATE($B$6,126)","v":"2035-04-15"},2244907.0700000008,302000,264696.38,37303.620000000003,1980210.6900000009]
["Net Present Value (calculated after Macros below run)",{"$f":"SUM(G:G)","v":6569840.8314788481},"Do not insert/delete/move",null,23,302000,210157.48007531033,null,null,23,{"$f":"EDATE($B$6,132)","v":"2035-10-15"},1980210.6900000009,302000,269094.83999999997,32905.160000000003,1711115.850000001]
[null,null,"NPV must be cell B25",null,24,302000,206722.37438023396,null,null,24,{"$f":"EDATE($B$6,138)","v":"2036-04-15"},1711115.850000001,302000,273566.39,28433.61,1437549.4600000009]
["Additions/Subtractions for Deferred Inflow of Resources (Section IV, #9-11)",{"$f":"'Data Input'!B124-'Data Input'!B127","v":287000},"(macros depend on it)",null,25,302000,203343.41682288807,null,null,25,{"$f":"EDATE($B$6,144)","v":"2036-10-15"},1437549.4600000009,302000,278112.24,23887.759999999998,1159437.2200000009]
["Deferred Inflow of Resources (calculated after Macros below run)",{"$f":"B25+B27","v":6856840.8314788481},null,null,26,302000,200019.68964013786,null,null,26,{"$f":"EDATE($B$6,150)","v":"2037-04-15"},1159437.2200000009,302000,282733.63,19266.37,876703.5900000009]
[null,null,null,null,27,302000,196750.29007004393,null,null,27,{"$f":"EDATE($B$6,156)","v":"2037-10-15"},876703.5900000009,302000,287431.82,14568.18,589271.77000000095]
["The Agency is not required to calculate the Present Value and/or enable Macros,",null,null,null,28,302000,193534.33010666151,null,null,28,{"$f":"EDATE($B$6,162)","v":"2038-04-15"},589271.77000000095,302000,292208.07,9791.93,297063.70000000094]
["but Steps 1 & 2 of the instructions below are REQUIRED to be completed.",null,null,null,29,302000,190370.93625884826,null,null,29,{"$f":"EDATE($B$6,168)","v":"2038-10-15"},297063.70000000094,302000,297063.7,{"$f":"ROUND(L31*$B$2,2)-0.01","v":4936.3},9.3132257461547852E-10]
["After completing Steps 1 & 2, if desired to calculate the Present Value, complete Steps 3 - 8:",null,null,null,30,0,0,null,null,30,{"$f":"EDATE($B$6,174)","v":"2039-04-15"},9.3132257461547852E-10,0,0,{"$f":"ROUND(L32*$B$2,2)","v":0},9.3132257461547852E-10]
[]
["Note 1:  First make sure your Excel settings are correct -","See How to Enable Macros tab"]
["Note 2:  Please do not Insert, Delete, or Move any cells, columns or rows as this could cause the Macros to fail."]
["Note 3:  The Blue Cells in columns B & C are for manual input, and the Present Value Table will need to be adjusted in column F."]
["The Orange cells in columns B & C will automatically fill.  Also, the Present Value and Amortization Tables will be generated with the"]
["Macro buttons.  Please do not make changes to the orange cells or anywhere within the Tables (except column F)."]
[]
["Step 1 - Fill out the \"Fixed Lease Payment Receivable Schedule\" section above (starting on row 10)."]
["a - If payments escalate over time, list beginning payment amount & # of payments to be received at that amount, then move to line #2"]
["and list the next payment amount & # of payments at that amount, etc."]
["b - If an extension is deemed Reasonably Certain to be exercised, but the amount is listed as \"negotiable\", then use the lease"]
["payment amount just prior to the date of extension for those unknown amounts."]
["c - If a future payment is variable based on an index or interest rate, then calculate those future payments using the current index or rate."]
["d - If there is an Abated or Free Rent period (skipped payment) indicated in the lease contract,",null,"Desc of Lease Incentives"]
["indicate that with a $0 payment amount (col B) & the number of payments to be skipped (col C).",null,{"$f":"'Data Input'!B238","v":"Free Rent Period for pmt due 10/15/2025"}]
["Make sure to put these skipped payments in the correct order chronologically.  For example, if there"]
["is a Free Rent period for payment 13, then list the first 12 payments on the first line, then"]
["line #2 as $0 (col B) and 1 (col C), then line #3 as the continuing payments after the Free Rent period."]
["e - If a Bonus payment from the lessor is included in the contract, subtract that amount from the payment closest to the proper"]
["chronological period (as described in d above).  This may cause that payment amount to be negative."]
["f - Use the blue box below to describe how payments change over time.  For example - (a) Payment increases 5% every 10 yrs;"]
["(b) Appraisal to be completed every 25 years; or (c) Payment recalculated every 5 yrs based on CPI, etc."]
["Also describe payment frequency if Less Often than Annually."]
["Fixed + Fixed-In-Substance payment for 1st 5 yrs = $282,000; Payment for yrs 6-10 = $302,000; extension period amount to be negotiated - therefore, using most recent payment amount before extension period of $302,000.\nFinal Payment is $0 because of the deposit paid before commencement of the lease."]
[]
[]
["g - If payments are Less Often than Annually,indicate this in the Payment Schedule above by listing first payment on the first row (1 in"]
["col C), then the 2nd row should show how many years to be skipped in col C ($0 in col B), then the 3rd row will show the 2nd payment."]
["Repeat until all payments & all years are represented in the Payment Schdl (total in col C should tie to total yrs of lease term & cell B4)."]
["h - If there are not enough lines in the table above, use the table below to input the additional payment amounts, and the totals from"]
["the additional table will automatically be added to the Payment Schedule above."]
["i - Verify that the total # of payments in cell B4 is the same as the sum of col C (cell C16)."]
[]
["Additional Lease Payment Receivable Lines (if needed)","Amount","# of Payments"]
["Payment Amount #5 & # of Payments at this amount",0,1]
["Payment Amount #6 & # of Payments at this amount",0,0]
["Payment Amount #7 & # of Payments at this amount",0,0]
["Payment Amount #8 & # of Payments at this amount",0,0]
["Payment Amount #9 & # of Payments at this amount",0,0]
["Payment Amount #10 & # of Payments at this amount",0,0]
["Payment Amount #11 & # of Payments at this amount",0,0]
["Payment Amount #12 & # of Payments at this amount",0,0]
["Payment Amount #13 & # of Payments at this amount",0,0]
["Payment Amount #14 & # of Payments at this amount",0,0]
["Payment Amount #15 & # of Payments at this amount",0,0]
["Payment Amount #16 & # of Payments at this amount",0,0]
["Payment Amount #17 & # of Payments at this amount",0,0]
["Payment Amount #18 & # of Payments at this amount",0,0]
["Payment Amount #19 & # of Payments at this amount",0,0]
["Payment Amount #20 & # of Payments at this amount",0,0]
["Payment Amount #21 & # of Payments at this amount",0,0]
["Payment Amount #22 & # of Payments at this amount",0,0]
["Payment Amount #23 & # of Payments at this amount",0,0]
["Payment Amount #24 & # of Payments at this amount",0,0]
["Payment Amount #25 & # of Payments at this amount",0,0]
["Total Add'l Lease Payment Amts (will automatically be added to the Schedule above)",{"$f":"(B67*C67)+(B68*C68)+(B69*C69)+(B70*C70)+(B71*C71)+(B72*C72)+(B73*C73)+(B74*C74)+(B75*C75)+(B76*C76)+(B77*C77)+(B78*C78)+(B79*C79)+(B80*C80)+(B81*C81)+(B82*C82)+(B83*C83)+(B84*C84)+(B85*C85)+(B86*C86)+(B87*C87)","v":0},{"$f":"SUM(C67:C87)","v":1}]
[]
["Step 2 - Fill out the \"Other Payment Considerations\" section (starting on row 18) ONLY if instructed to do so on the Data Input tab"]
["(responses from Data Input tab are shown in col D)."]
["a - The Residual Value Guarantee line should only have an amount listed in Col B if it is Fixed In-Substance and not reliant on a future"]
["consideration (i.e. FMV of leased asset)."]
["b - The Allowance for Uncollectible Leases line should only have an amount listed in col C if economic circumstances, lessee"]
["creditworthiness, and historic information indicate a need for an allowance to be calculated.  This amount is listed in col C because"]
["it will not be calculated as part of the Present Value of the Lease Receivable, but will instead reduce the Present Value after it is"]
["calculated as a contra-receivable."]
[]
["Steps 3 - 8 are OPTIONAL (calculation of Present Value and Amortization Tables)"]
["Step 3 - Click the Macro button below to Generate the first 2 columns of the Present Value (PV) Table."]
[]
[]
["Step 4 - Using the Payment Receivable Schedule filled out in Steps 1 & 2, fill in the Payment Amounts into col F of the PV Table."]
["a - If there are 12 payments for the 1st payment amount, and 6 payments for the 2nd payment amount, list the 1st amount in the"]
["first 12 rows of the Table, then the 2nd amount for the next 6 rows, and do the same for the remaining payment amounts listed"]
["in the Payment Schedule until all the payments are filled in on the Table."]
["b - Make sure not to skip any Free Rent periods.  If the Payment Schedule indicates the 13th payment is $0, then row 13 of the"]
["Table should be $0, same as the Payment Schedule."]
["c - If there are any amounts listed for \"Other Payment Considerations\", add it to the final payment.  For example, if the final"]
["payment is $20,000, and there is a Residual Value Guarantee listed for $5,000, then the final payment in the Table should be $25,000."]
["d - Check to make sure that the sum of all the payments entered into col F of the Table is the same as the Total Undiscounted Cash"]
["Flows in cell B23."]
[]
["Step 5 - Click the Macro button below to Calculate Net Present Value and Generate the PV and Amortization Tables."]
[]
[]
[]
["Step 6 - Check data for accuracy:"]
["a - Check the date of the final payment in the Amortization Table and compare to Lease End Date in cell B8.  Make sure the final"]
["payment date is reasonable in comparison to the Lease End Date (within same month if payments are Monthly, within the final"]
["quarter if Quarterly, etc)."]
["b - If payments change (there are amounts in Payment Amount #2 + rows), then check the dates the amounts change in the"]
["Amort Table (columns K & M) to make sure the payments change on the correct dates as per the Lease Contract."]
["c - If 6a and 6b are BOTH correct, skip to Step 8 (Do NOT click the Start Over Macro Button)."]
["d - If 6a or 6b does not appear to be correct:"]
["i - Double-check the Instructions above (Steps 1 - 6), including the check for # of payments in 1i & check for Table payments in 4d."]
["ii - Double-check cells B2-B8 by reviewing the Lease Contract.  These cells automatically filled based on answers in the Data Input"]
["tab.  Make any necessary corrections in the Data Input tab (NOT in cells B2-B8) - the corresponding question #s are referenced above."]
["iii - Double-Check the Payment Schedule and Other Payment Considerations sections.  Compare back to the Lease contract to"]
["verify, and correct as necessary."]
["e - Once corrections have been made, click the Macro button below to Delete the PV & Amortization Tables."]
[]
[]
[]
["Step 7 - Repeat Steps 3-6 as needed until all checks (1i, 4d, 6a, 6b, and 6di-6diii) are correct."]
[]
["Step 8 - See Net Present Value calculated in cell B25 for the Lease Receivable and the Deferred Inflow of Resources in cell B28."]
["Also, see Present Value Table in columns E-G,"]
["and Amortization Table in columns J-P."]

{"sheet":"Lease 1 - PV Calc","index":5,"n_rows":139,"n_cols":4,"rows_kept":139,"cut":false,"hidden":false,"merged":[[46,2,49,2],[55,0,57,2]]}
["Present Value Calculations tab - Lease 1 (column C)","Contract #",{"$f":"'Data Input'!C58","v":0}]
["Periodic Interest Rate (Section VII, #27-28 from Data Input tab)",{"$f":"'Data Input'!C266","v":0}]
["Cash Flows at Beginning or End (Section V, #19)",{"$f":"'Data Input'!C179","v":0},"Important:"]
["Number of payments (Section V, #18)",{"$f":"'Data Input'!C172","v":0},"Do not insert/delete/move"]
["Frequency of payments (Section V, #17)",{"$f":"'Data Input'!C166","v":0},"cells B2:B8"]
["Date of first payment (Section V, #20)",{"$f":"'Data Input'!C185","v":"00:00:00"},"(macros depend on them)"]
["Lease Start Date (Section V, #12)",{"$f":"'Data Input'!C150","v":"00:00:00"}]
["Lease End Date including Extensions (Section V, #15)",{"$f":"'Data Input'!C161","v":"00:00:00"}]
[]
["Fixed Lease Payment Receivable Schedule (Section VI, #21 & see instructions below):","Amount","# of Payments"]
["Payment Amount #1 & # of Payments at this amount",0,0]
["Payment Amount #2 & # of Payments at this amount",0,0]
["Payment Amount #3 & # of Payments at this amount",0,0]
["Payment Amount #4 & # of Payments at this amount",0,0]
["Totals from add'l table below (if needed)",{"$f":"B88","v":0},{"$f":"C88","v":0}]
["Total Lease Payments (sum of all payment amounts * # of payments)",{"$f":"(B11*C11)+(B12*C12)+(B13*C13)+(B14*C14)+(B15)","v":0},{"$f":"SUM(C11:C15)","v":0}]
[null,null,null,"Response per"]
["Other Payment Considerations:","Residual Value Guar","Allow for Uncollectible Amt","Data Input tab"]
["Residual Value Guarantee if Fixed-in-Substance (Section VI, #24a & b)",0,null,{"$f":"'Data Input'!C224","v":0}]
["Allowance for Uncollectible Leases (Section VI, #26)"]
["For example, could be calculated as a percentage of the total lease pmt rcvbl above",null,0,{"$f":"'Data Input'!C242","v":0}]
["Total Other Payment Considerations",{"$f":"SUM(B19:B21)","v":0}]
["Total Undiscounted Cash Flows (Total Payments + Other Considerations)",{"$f":"B16+B22","v":0}]
[null,null,"Important:"]
["Net Present Value (calculated after Macros below run)",{"$f":"SUM(G:G)","v":0},"Do not insert/delete/move"]
[null,null,"NPV must be cell B25"]
["Additions/Subtractions for Deferred Inflow of Resources (Section IV, #9-11)",{"$f":"'Data Input'!C124-'Data Input'!C127","v":0},"(macros depend on it)"]
["Deferred Inflow of Resources (calculated after Macros below run)",{"$f":"B25+B27","v":0}]
[]
["The Agency is not required to calculate the Present Value and/or enable Macros,"]
["but Steps 1 & 2 of the instructions below are REQUIRED to be completed."]
["After completing Steps 1 & 2, if desired to calculate the Present Value, complete Steps 3 - 8:"]
[]
["Note 1:  First make sure your Excel settings are correct -","See How to Enable Macros tab"]
["Note 2:  Please do not Insert, Delete, or Move any cells, columns or rows as this could cause the Macros to fail."]
["Note 3:  The Blue Cells in columns B & C are for manual input, and the Present Value Table will need to be adjusted in column F."]
["The Orange cells in columns B & C will automatically fill.  Also, the Present Value and Amortization Tables will be generated with the"]
["Macro buttons.  Please do not make changes to the orange cells or anywhere within the Tables (except column F)."]
[]
["Step 1 - Fill out the \"Fixed Lease Payment Receivable Schedule\" section above (starting on row 10)."]
["a - If payments escalate over time, list beginning payment amount & # of payments to be received at that amount, then move to line #2"]
["and list the next payment amount & # of payments at that amount, etc."]
["b - If an extension is deemed Reasonably Certain to be exercised, but the amount is listed as \"negotiable\", then use the lease"]
["payment amount just prior to the date of extension for those unknown amounts."]
["c - If a future payment is variable based on an index or interest rate, then calculate those future payments using the current index or rate."]
["d - If there is an Abated or Free Rent period (skipped payment) indicated in the lease contract,",null,"Desc of Lease Incentives"]
["indicate that with a $0 payment amount (col B) & the number of payments to be skipped (col C).",null,{"$f":"'Data Input'!C238","v":0}]
["Make sure to put these skipped payments in the correct order chronologically.  For example, if there"]
["is a Free Rent period for payment 13, then list the first 12 payments on the first line, then"]
["line #2 as $0 (col B) and 1 (col C), then line #3 as the continuing payments after the Free Rent period."]
["e - If a Bonus payment from the lessor is included in the contract, subtract that amount from the payment closest to the proper"]
["chronological period (as described in d above).  This may cause that payment amount to be negative."]
["f - Use the blue box below to describe how payments change over time.  For example - (a) Payment increases 5% every 10 yrs;"]
["(b) Appraisal to be completed every 25 years; or (c) Payment recalculated every 5 yrs based on CPI, etc."]
["Also describe payment frequency if Less Often than Annually."]
[]
[]
[]
["g - If payments are Less Often than Annually,indicate this in the Payment Schedule above by listing first payment on the first row (1 in"]
["col C), then the 2nd row should show how many years to be skipped in col C ($0 in col B), then the 3rd row will show the 2nd payment."]
["Repeat until all payments & all years are represented in the Payment Schdl (total in col C should tie to total yrs of lease term & cell B4)."]
["h - If there are not enough lines in the table above, use the table below to input the additional payment amounts, and the totals from"]
["the additional table will automatically be added to the Payment Schedule above."]
["i - Verify that the total # of payments in cell B4 is the same as the sum of col C (cell C16)."]
[]
["Additional Lease Payment Receivable Lines (if needed)","Amount","# of Payments"]
["Payment Amount #5 & # of Payments at this amount",0,0]
["Payment Amount #6 & # of Payments at this amount",0,0]
["Payment Amount #7 & # of Payments at this amount",0,0]
["Payment Amount #8 & # of Payments at this amount",0,0]
["Payment Amount #9 & # of Payments at this amount",0,0]
["Payment Amount #10 & # of Payments at this amount",0,0]
["Payment Amount #11 & # of Payments at this amount",0,0]
["Payment Amount #12 & # of Payments at this amount",0,0]
["Payment Amount #13 & # of Payments at this amount",0,0]
["Payment Amount #14 & # of Payments at this amount",0,0]
["Payment Amount #15 & # of Payments at this amount",0,0]
["Payment Amount #16 & # of Payments at this amount",0,0]
["Payment Amount #17 & # of Payments at this amount",0,0]
["Payment Amount #18 & # of Payments at this amount",0,0]
["Payment Amount #19 & # of Payments at this amount",0,0]
["Payment Amount #20 & # of Payments at this amount",0,0]
["Payment Amount #21 & # of Payments at this amount",0,0]
["Payment Amount #22 & # of Payments at this amount",0,0]
["Payment Amount #23 & # of Payments at this amount",0,0]
["Payment Amount #24 & # of Payments at this amount",0,0]
["Payment Amount #25 & # of Payments at this amount",0,0]
["Total Add'l Lease Payment Amts (will automatically be added to the Schedule above)",{"$f":"(B67*C67)+(B68*C68)+(B69*C69)+(B70*C70)+(B71*C71)+(B72*C72)+(B73*C73)+(B74*C74)+(B75*C75)+(B76*C76)+(B77*C77)+(B78*C78)+(B79*C79)+(B80*C80)+(B81*C81)+(B82*C82)+(B83*C83)+(B84*C84)+(B85*C85)+(B86*C86)+(B87*C87)","v":0},{"$f":"SUM(C67:C87)","v":0}]
[]
["Step 2 - Fill out the \"Other Payment Considerations\" section (starting on row 18) ONLY if instructed to do so on the Data Input tab"]
["(responses from Data Input tab are shown in col D)."]
["a - The Residual Value Guarantee line should only have an amount listed in Col B if it is Fixed In-Substance and not reliant on a future"]
["consideration (i.e. FMV of leased asset)."]
["b - The Allowance for Uncollectible Leases line should only have an amount listed in col C if economic circumstances, lessee"]
["creditworthiness, and historic information indicate a need for an allowance to be calculated.  This amount is listed in col C because"]
["it will not be calculated as part of the Present Value of the Lease Receivable, but will instead reduce the Present Value after it is"]
["calculated as a contra-receivable."]
[]
["Steps 3 - 8 are OPTIONAL (calculation of Present Value and Amortization Tables)"]
["Step 3 - Click the Macro button below to Generate the first 2 columns of the Present Value (PV) Table."]
[]
[]
["Step 4 - Using the Payment Receivable Schedule filled out in Steps 1 & 2, fill in the Payment Amounts into col F of the PV Table."]
["a - If there are 12 payments for the 1st payment amount, and 6 payments for the 2nd payment amount, list the 1st amount in the"]
["first 12 rows of the Table, then the 2nd amount for the next 6 rows, and do the same for the remaining payment amounts listed"]
["in the Payment Schedule until all the payments are filled in on the Table."]
["b - Make sure not to skip any Free Rent periods.  If the Payment Schedule indicates the 13th payment is $0, then row 13 of the"]
["Table should be $0, same as the Payment Schedule."]
["c - If there are any amounts listed for \"Other Payment Considerations\", add it to the final payment.  For example, if the final"]
["payment is $20,000, and there is a Residual Value Guarantee listed for $5,000, then the final payment in the Table should be $25,000."]
["d - Check to make sure that the sum of all the payments entered into col F of the Table is the same as the Total Undiscounted Cash"]
["Flows in cell B23."]
[]
["Step 5 - Click the Macro button below to Calculate Net Present Value and Generate the PV and Amortization Tables."]
[]
[]
[]
["Step 6 - Check data for accuracy:"]
["a - Check the date of the final payment in the Amortization Table and compare to Lease End Date in cell B8.  Make sure the final"]
["payment date is reasonable in comparison to the Lease End Date (within same month if payments are Monthly, within the final"]
["quarter if Quarterly, etc)."]
["b - If payments change (there are amounts in Payment Amount #2 + rows), then check the dates the amounts change in the"]
["Amort Table (columns K & M) to make sure the payments change on the correct dates as per the Lease Contract."]
["c - If 6a and 6b are BOTH correct, skip to Step 8 (Do NOT click the Start Over Macro Button)."]
["d - If 6a or 6b does not appear to be correct:"]
["i - Double-check the Instructions above (Steps 1 - 6), including the check for # of payments in 1i & check for Table payments in 4d."]
["ii - Double-check cells B2-B8 by reviewing the Lease Contract.  These cells automatically filled based on answers in the Data Input"]
["tab.  Make any necessary corrections in the Data Input tab (NOT in cells B2-B8) - the corresponding question #s are referenced above."]
["iii - Double-Check the Payment Schedule and Other Payment Considerations sections.  Compare back to the Lease contract to"]
["verify, and correct as necessary."]
["e - Once corrections have been made, click the Macro button below to Delete the PV & Amortization Tables."]
[]
[]
[]
["Step 7 - Repeat Steps 3-6 as needed until all checks (1i, 4d, 6a, 6b, and 6di-6diii) are correct."]
[]
["Step 8 - See Net Present Value calculated in cell B25 for the Lease Receivable and the Deferred Inflow of Resources in cell B28."]
["Also, see Present Value Table in columns E-G,"]
["and Amortization Table in columns J-P."]

{"sheet":"Lease 2 - PV Calc","index":6,"n_rows":139,"n_cols":4,"rows_kept":139,"cut":false,"hidden":false,"merged":[[46,2,49,2],[55,0,57,2]]}
["Present Value Calculations tab - Lease 2 (column D)","Contract #",{"$f":"'Data Input'!D58","v":0}]
["Periodic Interest Rate (Section VII, #27-28 from Data Input tab)",{"$f":"'Data Input'!D266","v":0}]
["Cash Flows at Beginning or End (Section V, #19)",{"$f":"'Data Input'!D179","v":0},"Important:"]
["Number of payments (Section V, #18)",{"$f":"'Data Input'!D172","v":0},"Do not insert/delete/move"]
["Frequency of payments (Section V, #17)",{"$f":"'Data Input'!D166","v":0},"cells B2:B8"]
["Date of first payment (Section V, #20)",{"$f":"'Data Input'!D185","v":"00:00:00"},"(macros depend on them)"]
["Lease Start Date (Section V, #12)",{"$f":"'Data Input'!D150","v":"00:00:00"}]
["Lease End Date including Extensions (Section V, #15)",{"$f":"'Data Input'!D161","v":"00:00:00"}]
[]
["Fixed Lease Payment Receivable Schedule (Section VI, #21 & see instructions below):","Amount","# of Payments"]
["Payment Amount #1 & # of Payments at this amount",0,0]
["Payment Amount #2 & # of Payments at this amount",0,0]
["Payment Amount #3 & # of Payments at this amount",0,0]
["Payment Amount #4 & # of Payments at this amount",0,0]
["Totals from add'l table below (if needed)",{"$f":"B88","v":0},{"$f":"C88","v":0}]
["Total Lease Payments (sum of all payment amounts * # of payments)",{"$f":"(B11*C11)+(B12*C12)+(B13*C13)+(B14*C14)+(B15)","v":0},{"$f":"SUM(C11:C15)","v":0}]
[null,null,null,"Response per"]
["Other Payment Considerations:","Residual Value Guar","Allow for Uncollectible Amt","Data Input tab"]
["Residual Value Guarantee if Fixed-in-Substance (Section VI, #24a & b)",0,null,{"$f":"'Data Input'!D224","v":0}]
["Allowance for Uncollectible Leases (Section VI, #26)"]
["For example, could be calculated as a percentage of the total lease pmt rcvbl above",null,0,{"$f":"'Data Input'!D242","v":0}]
["Total Other Payment Considerations",{"$f":"SUM(B19:B21)","v":0}]
["Total Undiscounted Cash Flows (Total Payments + Other Considerations)",{"$f":"B16+B22","v":0}]
[null,null,"Important:"]
["Net Present Value (calculated after Macros below run)",{"$f":"SUM(G:G)","v":0},"Do not insert/delete/move"]
[null,null,"NPV must be cell B25"]
["Additions/Subtractions for Deferred Inflow of Resources (Section IV, #9-11)",{"$f":"'Data Input'!D124-'Data Input'!D127","v":0},"(macros depend on it)"]
["Deferred Inflow of Resources (calculated after Macros below run)",{"$f":"B25+B27","v":0}]
[]
["The Agency is not required to calculate the Present Value and/or enable Macros,"]
["but Steps 1 & 2 of the instructions below are REQUIRED to be completed."]
["After completing Steps 1 & 2, if desired to calculate the Present Value, complete Steps 3 - 8:"]
[]
["Note 1:  First make sure your Excel settings are correct -","See How to Enable Macros tab"]
["Note 2:  Please do not Insert, Delete, or Move any cells, columns or rows as this could cause the Macros to fail."]
["Note 3:  The Blue Cells in columns B & C are for manual input, and the Present Value Table will need to be adjusted in column F."]
["The Orange cells in columns B & C will automatically fill.  Also, the Present Value and Amortization Tables will be generated with the"]
["Macro buttons.  Please do not make changes to the orange cells or anywhere within the Tables (except column F)."]
[]
["Step 1 - Fill out the \"Fixed Lease Payment Receivable Schedule\" section above (starting on row 10)."]
["a - If payments escalate over time, list beginning payment amount & # of payments to be received at that amount, then move to line #2"]
["and list the next payment amount & # of payments at that amount, etc."]
["b - If an extension is deemed Reasonably Certain to be exercised, but the amount is listed as \"negotiable\", then use the lease"]
["payment amount just prior to the date of extension for those unknown amounts."]
["c - If a future payment is variable based on an index or interest rate, then calculate those future payments using the current index or rate."]
["d - If there is an Abated or Free Rent period (skipped payment) indicated in the lease contract,",null,"Desc of Lease Incentives"]
["indicate that with a $0 payment amount (col B) & the number of payments to be skipped (col C).",null,{"$f":"'Data Input'!D238","v":0}]
["Make sure to put these skipped payments in the correct order chronologically.  For example, if there"]
["is a Free Rent period for payment 13, then list the first 12 payments on the first line, then"]
["line #2 as $0 (col B) and 1 (col C), then line #3 as the continuing payments after the Free Rent period."]
["e - If a Bonus payment from the lessor is included in the contract, subtract that amount from the payment closest to the proper"]
["chronological period (as described in d above).  This may cause that payment amount to be negative."]
["f - Use the blue box below to describe how payments change over time.  For example - (a) Payment increases 5% every 10 yrs;"]
["(b) Appraisal to be completed every 25 years; or (c) Payment recalculated every 5 yrs based on CPI, etc."]
["Also describe payment frequency if Less Often than Annually."]
[]
[]
[]
["g - If payments are Less Often than Annually,indicate this in the Payment Schedule above by listing first payment on the first row (1 in"]
["col C), then the 2nd row should show how many years to be skipped in col C ($0 in col B), then the 3rd row will show the 2nd payment."]
["Repeat until all payments & all years are represented in the Payment Schdl (total in col C should tie to total yrs of lease term & cell B4)."]
["h - If there are not enough lines in the table above, use the table below to input the additional payment amounts, and the totals from"]
["the additional table will automatically be added to the Payment Schedule above."]
["i - Verify that the total # of payments in cell B4 is the same as the sum of col C (cell C16)."]
[]
["Additional Lease Payment Receivable Lines (if needed)","Amount","# of Payments"]
["Payment Amount #5 & # of Payments at this amount",0,0]
["Payment Amount #6 & # of Payments at this amount",0,0]
["Payment Amount #7 & # of Payments at this amount",0,0]
["Payment Amount #8 & # of Payments at this amount",0,0]
["Payment Amount #9 & # of Payments at this amount",0,0]
["Payment Amount #10 & # of Payments at this amount",0,0]
["Payment Amount #11 & # of Payments at this amount",0,0]
["Payment Amount #12 & # of Payments at this amount",0,0]
["Payment Amount #13 & # of Payments at this amount",0,0]
["Payment Amount #14 & # of Payments at this amount",0,0]
["Payment Amount #15 & # of Payments at this amount",0,0]
["Payment Amount #16 & # of Payments at this amount",0,0]
["Payment Amount #17 & # of Payments at this amount",0,0]
["Payment Amount #18 & # of Payments at this amount",0,0]
["Payment Amount #19 & # of Payments at this amount",0,0]
["Payment Amount #20 & # of Payments at this amount",0,0]
["Payment Amount #21 & # of Payments at this amount",0,0]
["Payment Amount #22 & # of Payments at this amount",0,0]
["Payment Amount #23 & # of Payments at this amount",0,0]
["Payment Amount #24 & # of Payments at this amount",0,0]
["Payment Amount #25 & # of Payments at this amount",0,0]
["Total Add'l Lease Payment Amts (will automatically be added to the Schedule above)",{"$f":"(B67*C67)+(B68*C68)+(B69*C69)+(B70*C70)+(B71*C71)+(B72*C72)+(B73*C73)+(B74*C74)+(B75*C75)+(B76*C76)+(B77*C77)+(B78*C78)+(B79*C79)+(B80*C80)+(B81*C81)+(B82*C82)+(B83*C83)+(B84*C84)+(B85*C85)+(B86*C86)+(B87*C87)","v":0},{"$f":"SUM(C67:C87)","v":0}]
[]
["Step 2 - Fill out the \"Other Payment Considerations\" section (starting on row 18) ONLY if instructed to do so on the Data Input tab"]
["(responses from Data Input tab are shown in col D)."]
["a - The Residual Value Guarantee line should only have an amount listed in Col B if it is Fixed In-Substance and not reliant on a future"]
["consideration (i.e. FMV of leased asset)."]
["b - The Allowance for Uncollectible Leases line should only have an amount listed in col C if economic circumstances, lessee"]
["creditworthiness, and historic information indicate a need for an allowance to be calculated.  This amount is listed in col C because"]
["it will not be calculated as part of the Present Value of the Lease Receivable, but will instead reduce the Present Value after it is"]
["calculated as a contra-receivable."]
[]
["Steps 3 - 8 are OPTIONAL (calculation of Present Value and Amortization Tables)"]
["Step 3 - Click the Macro button below to Generate the first 2 columns of the Present Value (PV) Table."]
[]
[]
["Step 4 - Using the Payment Receivable Schedule filled out in Steps 1 & 2, fill in the Payment Amounts into col F of the PV Table."]
["a - If there are 12 payments for the 1st payment amount, and 6 payments for the 2nd payment amount, list the 1st amount in the"]
["first 12 rows of the Table, then the 2nd amount for the next 6 rows, and do the same for the remaining payment amounts listed"]
["in the Payment Schedule until all the payments are filled in on the Table."]
["b - Make sure not to skip any Free Rent periods.  If the Payment Schedule indicates the 13th payment is $0, then row 13 of the"]
["Table should be $0, same as the Payment Schedule."]
["c - If there are any amounts listed for \"Other Payment Considerations\", add it to the final payment.  For example, if the final"]
["payment is $20,000, and there is a Residual Value Guarantee listed for $5,000, then the final payment in the Table should be $25,000."]
["d - Check to make sure that the sum of all the payments entered into col F of the Table is the same as the Total Undiscounted Cash"]
["Flows in cell B23."]
[]
["Step 5 - Click the Macro button below to Calculate Net Present Value and Generate the PV and Amortization Tables."]
[]
[]
[]
["Step 6 - Check data for accuracy:"]
["a - Check the date of the final payment in the Amortization Table and compare to Lease End Date in cell B8.  Make sure the final"]
["payment date is reasonable in comparison to the Lease End Date (within same month if payments are Monthly, within the final"]
["quarter if Quarterly, etc)."]
["b - If payments change (there are amounts in Payment Amount #2 + rows), then check the dates the amounts change in the"]
["Amort Table (columns K & M) to make sure the payments change on the correct dates as per the Lease Contract."]
["c - If 6a and 6b are BOTH correct, skip to Step 8 (Do NOT click the Start Over Macro Button)."]
["d - If 6a or 6b does not appear to be correct:"]
["i - Double-check the Instructions above (Steps 1 - 6), including the check for # of payments in 1i & check for Table payments in 4d."]
["ii - Double-check cells B2-B8 by reviewing the Lease Contract.  These cells automatically filled based on answers in the Data Input"]
["tab.  Make any necessary corrections in the Data Input tab (NOT in cells B2-B8) - the corresponding question #s are referenced above."]
["iii - Double-Check the Payment Schedule and Other Payment Considerations sections.  Compare back to the Lease contract to"]
["verify, and correct as necessary."]
["e - Once corrections have been made, click the Macro button below to Delete the PV & Amortization Tables."]
[]
[]
[]
["Step 7 - Repeat Steps 3-6 as needed until all checks (1i, 4d, 6a, 6b, and 6di-6diii) are correct."]
[]
["Step 8 - See Net Present Value calculated in cell B25 for the Lease Receivable and the Deferred Inflow of Resources in cell B28."]
["Also, see Present Value Table in columns E-G,"]
["and Amortization Table in columns J-P."]

{"sheet":"Lease 3 - PV Calc","index":7,"n_rows":139,"n_cols":4,"rows_kept":139,"cut":false,"hidden":false,"merged":[[46,2,49,2],[55,0,57,2]]}
["Present Value Calculations tab - Lease 3 (column E)","Contract #",{"$f":"'Data Input'!E58","v":0}]
["Periodic Interest Rate (Section VII, #27-28 from Data Input tab)",{"$f":"'Data Input'!E266","v":0}]
["Cash Flows at Beginning or End (Section V, #19)",{"$f":"'Data Input'!E179","v":0},"Important:"]
["Number of payments (Section V, #18)",{"$f":"'Data Input'!E172","v":0},"Do not insert/delete/move"]
["Frequency of payments (Section V, #17)",{"$f":"'Data Input'!E166","v":0},"cells B2:B8"]
["Date of first payment (Section V, #20)",{"$f":"'Data Input'!E185","v":"00:00:00"},"(macros depend on them)"]
["Lease Start Date (Section V, #12)",{"$f":"'Data Input'!E150","v":"00:00:00"}]
["Lease End Date including Extensions (Section V, #15)",{"$f":"'Data Input'!E161","v":"00:00:00"}]
[]
["Fixed Lease Payment Receivable Schedule (Section VI, #21 & see instructions below):","Amount","# of Payments"]
["Payment Amount #1 & # of Payments at this amount",0,0]
["Payment Amount #2 & # of Payments at this amount",0,0]
["Payment Amount #3 & # of Payments at this amount",0,0]
["Payment Amount #4 & # of Payments at this amount",0,0]
["Totals from add'l table below (if needed)",{"$f":"B88","v":0},{"$f":"C88","v":0}]
["Total Lease Payments (sum of all payment amounts * # of payments)",{"$f":"(B11*C11)+(B12*C12)+(B13*C13)+(B14*C14)+(B15)","v":0},{"$f":"SUM(C11:C15)","v":0}]
[null,null,null,"Response per"]
["Other Payment Considerations:","Residual Value Guar","Allow for Uncollectible Amt","Data Input tab"]
["Residual Value Guarantee if Fixed-in-Substance (Section VI, #24a & b)",0,null,{"$f":"'Data Input'!E224","v":0}]
["Allowance for Uncollectible Leases (Section VI, #26)"]
["For example, could be calculated as a percentage of the total lease pmt rcvbl above",null,0,{"$f":"'Data Input'!E242","v":0}]
["Total Other Payment Considerations",{"$f":"SUM(B19:B21)","v":0}]
["Total Undiscounted Cash Flows (Total Payments + Other Considerations)",{"$f":"B16+B22","v":0}]
[null,null,"Important:"]
["Net Present Value (calculated after Macros below run)",{"$f":"SUM(G:G)","v":0},"Do not insert/delete/move"]
[null,null,"NPV must be cell B25"]
["Additions/Subtractions for Deferred Inflow of Resources (Section IV, #9-11)",{"$f":"'Data Input'!E124-'Data Input'!E127","v":0},"(macros depend on it)"]
["Deferred Inflow of Resources (calculated after Macros below run)",{"$f":"B25+B27","v":0}]
[]
["The Agency is not required to calculate the Present Value and/or enable Macros,"]
["but Steps 1 & 2 of the instructions below are REQUIRED to be completed."]
["After completing Steps 1 & 2, if desired to calculate the Present Value, complete Steps 3 - 8:"]
[]
["Note 1:  First make sure your Excel settings are correct -","See How to Enable Macros tab"]
["Note 2:  Please do not Insert, Delete, or Move any cells, columns or rows as this could cause the Macros to fail."]
["Note 3:  The Blue Cells in columns B & C are for manual input, and the Present Value Table will need to be adjusted in column F."]
["The Orange cells in columns B & C will automatically fill.  Also, the Present Value and Amortization Tables will be generated with the"]
["Macro buttons.  Please do not make changes to the orange cells or anywhere within the Tables (except column F)."]
[]
["Step 1 - Fill out the \"Fixed Lease Payment Receivable Schedule\" section above (starting on row 10)."]
["a - If payments escalate over time, list beginning payment amount & # of payments to be received at that amount, then move to line #2"]
["and list the next payment amount & # of payments at that amount, etc."]
["b - If an extension is deemed Reasonably Certain to be exercised, but the amount is listed as \"negotiable\", then use the lease"]
["payment amount just prior to the date of extension for those unknown amounts."]
["c - If a future payment is variable based on an index or interest rate, then calculate those future payments using the current index or rate."]
["d - If there is an Abated or Free Rent period (skipped payment) indicated in the lease contract,",null,"Desc of Lease Incentives"]
["indicate that with a $0 payment amount (col B) & the number of payments to be skipped (col C).",null,{"$f":"'Data Input'!E238","v":0}]
["Make sure to put these skipped payments in the correct order chronologically.  For example, if there"]
["is a Free Rent period for payment 13, then list the first 12 payments on the first line, then"]
["line #2 as $0 (col B) and 1 (col C), then line #3 as the continuing payments after the Free Rent period."]
["e - If a Bonus payment from the lessor is included in the contract, subtract that amount from the payment closest to the proper"]
["chronological period (as described in d above).  This may cause that payment amount to be negative."]
["f - Use the blue box below to describe how payments change over time.  For example - (a) Payment increases 5% every 10 yrs;"]
["(b) Appraisal to be completed every 25 years; or (c) Payment recalculated every 5 yrs based on CPI, etc."]
["Also describe payment frequency if Less Often than Annually."]
[]
[]
[]
["g - If payments are Less Often than Annually,indicate this in the Payment Schedule above by listing first payment on the first row (1 in"]
["col C), then the 2nd row should show how many years to be skipped in col C ($0 in col B), then the 3rd row will show the 2nd payment."]
["Repeat until all payments & all years are represented in the Payment Schdl (total in col C should tie to total yrs of lease term & cell B4)."]
["h - If there are not enough lines in the table above, use the table below to input the additional payment amounts, and the totals from"]
["the additional table will automatically be added to the Payment Schedule above."]
["i - Verify that the total # of payments in cell B4 is the same as the sum of col C (cell C16)."]
[]
["Additional Lease Payment Receivable Lines (if needed)","Amount","# of Payments"]
["Payment Amount #5 & # of Payments at this amount",0,0]
["Payment Amount #6 & # of Payments at this amount",0,0]
["Payment Amount #7 & # of Payments at this amount",0,0]
["Payment Amount #8 & # of Payments at this amount",0,0]
["Payment Amount #9 & # of Payments at this amount",0,0]
["Payment Amount #10 & # of Payments at this amount",0,0]
["Payment Amount #11 & # of Payments at this amount",0,0]
["Payment Amount #12 & # of Payments at this amount",0,0]
["Payment Amount #13 & # of Payments at this amount",0,0]
["Payment Amount #14 & # of Payments at this amount",0,0]
["Payment Amount #15 & # of Payments at this amount",0,0]
["Payment Amount #16 & # of Payments at this amount",0,0]
["Payment Amount #17 & # of Payments at this amount",0,0]
["Payment Amount #18 & # of Payments at this amount",0,0]
["Payment Amount #19 & # of Payments at this amount",0,0]
["Payment Amount #20 & # of Payments at this amount",0,0]
["Payment Amount #21 & # of Payments at this amount",0,0]
["Payment Amount #22 & # of Payments at this amount",0,0]
["Payment Amount #23 & # of Payments at this amount",0,0]
["Payment Amount #24 & # of Payments at this amount",0,0]
["Payment Amount #25 & # of Payments at this amount",0,0]
["Total Add'l Lease Payment Amts (will automatically be added to the Schedule above)",{"$f":"(B67*C67)+(B68*C68)+(B69*C69)+(B70*C70)+(B71*C71)+(B72*C72)+(B73*C73)+(B74*C74)+(B75*C75)+(B76*C76)+(B77*C77)+(B78*C78)+(B79*C79)+(B80*C80)+(B81*C81)+(B82*C82)+(B83*C83)+(B84*C84)+(B85*C85)+(B86*C86)+(B87*C87)","v":0},{"$f":"SUM(C67:C87)","v":0}]
[]
["Step 2 - Fill out the \"Other Payment Considerations\" section (starting on row 18) ONLY if instructed to do so on the Data Input tab"]
["(responses from Data Input tab are shown in col D)."]
["a - The Residual Value Guarantee line should only have an amount listed in Col B if it is Fixed In-Substance and not reliant on a future"]
["consideration (i.e. FMV of leased asset)."]
["b - The Allowance for Uncollectible Leases line should only have an amount listed in col C if economic circumstances, lessee"]
["creditworthiness, and historic information indicate a need for an allowance to be calculated.  This amount is listed in col C because"]
["it will not be calculated as part of the Present Value of the Lease Receivable, but will instead reduce the Present Value after it is"]
["calculated as a contra-receivable."]
[]
["Steps 3 - 8 are OPTIONAL (calculation of Present Value and Amortization Tables)"]
["Step 3 - Click the Macro button below to Generate the first 2 columns of the Present Value (PV) Table."]
[]
[]
["Step 4 - Using the Payment Receivable Schedule filled out in Steps 1 & 2, fill in the Payment Amounts into col F of the PV Table."]
["a - If there are 12 payments for the 1st payment amount, and 6 payments for the 2nd payment amount, list the 1st amount in the"]
["first 12 rows of the Table, then the 2nd amount for the next 6 rows, and do the same for the remaining payment amounts listed"]
["in the Payment Schedule until all the payments are filled in on the Table."]
["b - Make sure not to skip any Free Rent periods.  If the Payment Schedule indicates the 13th payment is $0, then row 13 of the"]
["Table should be $0, same as the Payment Schedule."]
["c - If there are any amounts listed for \"Other Payment Considerations\", add it to the final payment.  For example, if the final"]
["payment is $20,000, and there is a Residual Value Guarantee listed for $5,000, then the final payment in the Table should be $25,000."]
["d - Check to make sure that the sum of all the payments entered into col F of the Table is the same as the Total Undiscounted Cash"]
["Flows in cell B23."]
[]
["Step 5 - Click the Macro button below to Calculate Net Present Value and Generate the PV and Amortization Tables."]
[]
[]
[]
["Step 6 - Check data for accuracy:"]
["a - Check the date of the final payment in the Amortization Table and compare to Lease End Date in cell B8.  Make sure the final"]
["payment date is reasonable in comparison to the Lease End Date (within same month if payments are Monthly, within the final"]
["quarter if Quarterly, etc)."]
["b - If payments change (there are amounts in Payment Amount #2 + rows), then check the dates the amounts change in the"]
["Amort Table (columns K & M) to make sure the payments change on the correct dates as per the Lease Contract."]
["c - If 6a and 6b are BOTH correct, skip to Step 8 (Do NOT click the Start Over Macro Button)."]
["d - If 6a or 6b does not appear to be correct:"]
["i - Double-check the Instructions above (Steps 1 - 6), including the check for # of payments in 1i & check for Table payments in 4d."]
["ii - Double-check cells B2-B8 by reviewing the Lease Contract.  These cells automatically filled based on answers in the Data Input"]
["tab.  Make any necessary corrections in the Data Input tab (NOT in cells B2-B8) - the corresponding question #s are referenced above."]
["iii - Double-Check the Payment Schedule and Other Payment Considerations sections.  Compare back to the Lease contract to"]
["verify, and correct as necessary."]
["e - Once corrections have been made, click the Macro button below to Delete the PV & Amortization Tables."]
[]
[]
[]
["Step 7 - Repeat Steps 3-6 as needed until all checks (1i, 4d, 6a, 6b, and 6di-6diii) are correct."]
[]
["Step 8 - See Net Present Value calculated in cell B25 for the Lease Receivable and the Deferred Inflow of Resources in cell B28."]
["Also, see Present Value Table in columns E-G,"]
["and Amortization Table in columns J-P."]

{"sheet":"Lease 4 - PV Calc","index":8,"n_rows":139,"n_cols":4,"rows_kept":139,"cut":false,"hidden":false,"merged":[[46,2,49,2],[55,0,57,2]]}
["Present Value Calculations tab - Lease 4 (column F)","Contract #",{"$f":"'Data Input'!F58","v":0}]
["Periodic Interest Rate (Section VII, #27-28 from Data Input tab)",{"$f":"'Data Input'!F266","v":0}]
["Cash Flows at Beginning or End (Section V, #19)",{"$f":"'Data Input'!F179","v":0},"Important:"]
["Number of payments (Section V, #18)",{"$f":"'Data Input'!F172","v":0},"Do not insert/delete/move"]
["Frequency of payments (Section V, #17)",{"$f":"'Data Input'!F166","v":0},"cells B2:B8"]
["Date of first payment (Section V, #20)",{"$f":"'Data Input'!F185","v":"00:00:00"},"(macros depend on them)"]
["Lease Start Date (Section V, #12)",{"$f":"'Data Input'!F150","v":"00:00:00"}]
["Lease End Date including Extensions (Section V, #15)",{"$f":"'Data Input'!F161","v":"00:00:00"}]
[]
["Fixed Lease Payment Receivable Schedule (Section VI, #21 & see instructions below):","Amount","# of Payments"]
["Payment Amount #1 & # of Payments at this amount",0,0]
["Payment Amount #2 & # of Payments at this amount",0,0]
["Payment Amount #3 & # of Payments at this amount",0,0]
["Payment Amount #4 & # of Payments at this amount",0,0]
["Totals from add'l table below (if needed)",{"$f":"B88","v":0},{"$f":"C88","v":0}]
["Total Lease Payments (sum of all payment amounts * # of payments)",{"$f":"(B11*C11)+(B12*C12)+(B13*C13)+(B14*C14)+(B15)","v":0},{"$f":"SUM(C11:C15)","v":0}]
[null,null,null,"Response per"]
["Other Payment Considerations:","Residual Value Guar","Allow for Uncollectible Amt","Data Input tab"]
["Residual Value Guarantee if Fixed-in-Substance (Section VI, #24a & b)",0,null,{"$f":"'Data Input'!F224","v":0}]
["Allowance for Uncollectible Leases (Section VI, #26)"]
["For example, could be calculated as a percentage of the total lease pmt rcvbl above",null,0,{"$f":"'Data Input'!F242","v":0}]
["Total Other Payment Considerations",{"$f":"SUM(B19:B21)","v":0}]
["Total Undiscounted Cash Flows (Total Payments + Other Considerations)",{"$f":"B16+B22","v":0}]
[null,null,"Important:"]
["Net Present Value (calculated after Macros below run)",{"$f":"SUM(G:G)","v":0},"Do not insert/delete/move"]
[null,null,"NPV must be cell B25"]
["Additions/Subtractions for Deferred Inflow of Resources (Section IV, #9-11)",{"$f":"'Data Input'!F124-'Data Input'!F127","v":0},"(macros depend on it)"]
["Deferred Inflow of Resources (calculated after Macros below run)",{"$f":"B25+B27","v":0}]
[]
["The Agency is not required to calculate the Present Value and/or enable Macros,"]
["but Steps 1 & 2 of the instructions below are REQUIRED to be completed."]
["After completing Steps 1 & 2, if desired to calculate the Present Value, complete Steps 3 - 8:"]
[]
["Note 1:  First make sure your Excel settings are correct -","See How to Enable Macros tab"]
["Note 2:  Please do not Insert, Delete, or Move any cells, columns or rows as this could cause the Macros to fail."]
["Note 3:  The Blue Cells in columns B & C are for manual input, and the Present Value Table will need to be adjusted in column F."]
["The Orange cells in columns B & C will automatically fill.  Also, the Present Value and Amortization Tables will be generated with the"]
["Macro buttons.  Please do not make changes to the orange cells or anywhere within the Tables (except column F)."]
[]
["Step 1 - Fill out the \"Fixed Lease Payment Receivable Schedule\" section above (starting on row 10)."]
["a - If payments escalate over time, list beginning payment amount & # of payments to be received at that amount, then move to line #2"]
["and list the next payment amount & # of payments at that amount, etc."]
["b - If an extension is deemed Reasonably Certain to be exercised, but the amount is listed as \"negotiable\", then use the lease"]
["payment amount just prior to the date of extension for those unknown amounts."]
["c - If a future payment is variable based on an index or interest rate, then calculate those future payments using the current index or rate."]
["d - If there is an Abated or Free Rent period (skipped payment) indicated in the lease contract,",null,"Desc of Lease Incentives"]
["indicate that with a $0 payment amount (col B) & the number of payments to be skipped (col C).",null,{"$f":"'Data Input'!F238","v":0}]
["Make sure to put these skipped payments in the correct order chronologically.  For example, if there"]
["is a Free Rent period for payment 13, then list the first 12 payments on the first line, then"]
["line #2 as $0 (col B) and 1 (col C), then line #3 as the continuing payments after the Free Rent period."]
["e - If a Bonus payment from the lessor is included in the contract, subtract that amount from the payment closest to the proper"]
["chronological period (as described in d above).  This may cause that payment amount to be negative."]
["f - Use the blue box below to describe how payments change over time.  For example - (a) Payment increases 5% every 10 yrs;"]
["(b) Appraisal to be completed every 25 years; or (c) Payment recalculated every 5 yrs based on CPI, etc."]
["Also describe payment frequency if Less Often than Annually."]
[]
[]
[]
["g - If payments are Less Often than Annually,indicate this in the Payment Schedule above by listing first payment on the first row (1 in"]
["col C), then the 2nd row should show how many years to be skipped in col C ($0 in col B), then the 3rd row will show the 2nd payment."]
["Repeat until all payments & all years are represented in the Payment Schdl (total in col C should tie to total yrs of lease term & cell B4)."]
["h - If there are not enough lines in the table above, use the table below to input the additional payment amounts, and the totals from"]
["the additional table will automatically be added to the Payment Schedule above."]
["i - Verify that the total # of payments in cell B4 is the same as the sum of col C (cell C16)."]
[]
["Additional Lease Payment Receivable Lines (if needed)","Amount","# of Payments"]
["Payment Amount #5 & # of Payments at this amount",0,0]
["Payment Amount #6 & # of Payments at this amount",0,0]
["Payment Amount #7 & # of Payments at this amount",0,0]
["Payment Amount #8 & # of Payments at this amount",0,0]
["Payment Amount #9 & # of Payments at this amount",0,0]
["Payment Amount #10 & # of Payments at this amount",0,0]
["Payment Amount #11 & # of Payments at this amount",0,0]
["Payment Amount #12 & # of Payments at this amount",0,0]
["Payment Amount #13 & # of Payments at this amount",0,0]
["Payment Amount #14 & # of Payments at this amount",0,0]
["Payment Amount #15 & # of Payments at this amount",0,0]
["Payment Amount #16 & # of Payments at this amount",0,0]
["Payment Amount #17 & # of Payments at this amount",0,0]
["Payment Amount #18 & # of Payments at this amount",0,0]
["Payment Amount #19 & # of Payments at this amount",0,0]
["Payment Amount #20 & # of Payments at this amount",0,0]
["Payment Amount #21 & # of Payments at this amount",0,0]
["Payment Amount #22 & # of Payments at this amount",0,0]
["Payment Amount #23 & # of Payments at this amount",0,0]
["Payment Amount #24 & # of Payments at this amount",0,0]
["Payment Amount #25 & # of Payments at this amount",0,0]
["Total Add'l Lease Payment Amts (will automatically be added to the Schedule above)",{"$f":"(B67*C67)+(B68*C68)+(B69*C69)+(B70*C70)+(B71*C71)+(B72*C72)+(B73*C73)+(B74*C74)+(B75*C75)+(B76*C76)+(B77*C77)+(B78*C78)+(B79*C79)+(B80*C80)+(B81*C81)+(B82*C82)+(B83*C83)+(B84*C84)+(B85*C85)+(B86*C86)+(B87*C87)","v":0},{"$f":"SUM(C67:C87)","v":0}]
[]
["Step 2 - Fill out the \"Other Payment Considerations\" section (starting on row 18) ONLY if instructed to do so on the Data Input tab"]
["(responses from Data Input tab are shown in col D)."]
["a - The Residual Value Guarantee line should only have an amount listed in Col B if it is Fixed In-Substance and not reliant on a future"]
["consideration (i.e. FMV of leased asset)."]
["b - The Allowance for Uncollectible Leases line should only have an amount listed in col C if economic circumstances, lessee"]
["creditworthiness, and historic information indicate a need for an allowance to be calculated.  This amount is listed in col C because"]
["it will not be calculated as part of the Present Value of the Lease Receivable, but will instead reduce the Present Value after it is"]
["calculated as a contra-receivable."]
[]
["Steps 3 - 8 are OPTIONAL (calculation of Present Value and Amortization Tables)"]
["Step 3 - Click the Macro button below to Generate the first 2 columns of the Present Value (PV) Table."]
[]
[]
["Step 4 - Using the Payment Receivable Schedule filled out in Steps 1 & 2, fill in the Payment Amounts into col F of the PV Table."]
["a - If there are 12 payments for the 1st payment amount, and 6 payments for the 2nd payment amount, list the 1st amount in the"]
["first 12 rows of the Table, then the 2nd amount for the next 6 rows, and do the same for the remaining payment amounts listed"]
["in the Payment Schedule until all the payments are filled in on the Table."]
["b - Make sure not to skip any Free Rent periods.  If the Payment Schedule indicates the 13th payment is $0, then row 13 of the"]
["Table should be $0, same as the Payment Schedule."]
["c - If there are any amounts listed for \"Other Payment Considerations\", add it to the final payment.  For example, if the final"]
["payment is $20,000, and there is a Residual Value Guarantee listed for $5,000, then the final payment in the Table should be $25,000."]
["d - Check to make sure that the sum of all the payments entered into col F of the Table is the same as the Total Undiscounted Cash"]
["Flows in cell B23."]
[]
["Step 5 - Click the Macro button below to Calculate Net Present Value and Generate the PV and Amortization Tables."]
[]
[]
[]
["Step 6 - Check data for accuracy:"]
["a - Check the date of the final payment in the Amortization Table and compare to Lease End Date in cell B8.  Make sure the final"]
["payment date is reasonable in comparison to the Lease End Date (within same month if payments are Monthly, within the final"]
["quarter if Quarterly, etc)."]
["b - If payments change (there are amounts in Payment Amount #2 + rows), then check the dates the amounts change in the"]
["Amort Table (columns K & M) to make sure the payments change on the correct dates as per the Lease Contract."]
["c - If 6a and 6b are BOTH correct, skip to Step 8 (Do NOT click the Start Over Macro Button)."]
["d - If 6a or 6b does not appear to be correct:"]
["i - Double-check the Instructions above (Steps 1 - 6), including the check for # of payments in 1i & check for Table payments in 4d."]
["ii - Double-check cells B2-B8 by reviewing the Lease Contract.  These cells automatically filled based on answers in the Data Input"]
["tab.  Make any necessary corrections in the Data Input tab (NOT in cells B2-B8) - the corresponding question #s are referenced above."]
["iii - Double-Check the Payment Schedule and Other Payment Considerations sections.  Compare back to the Lease contract to"]
["verify, and correct as necessary."]
["e - Once corrections have been made, click the Macro button below to Delete the PV & Amortization Tables."]
[]
[]
[]
["Step 7 - Repeat Steps 3-6 as needed until all checks (1i, 4d, 6a, 6b, and 6di-6diii) are correct."]
[]
["Step 8 - See Net Present Value calculated in cell B25 for the Lease Receivable and the Deferred Inflow of Resources in cell B28."]
["Also, see Present Value Table in columns E-G,"]
["and Amortization Table in columns J-P."]

{"sheet":"Lease 5 - PV Calc","index":9,"n_rows":139,"n_cols":4,"rows_kept":139,"cut":false,"hidden":false,"merged":[[46,2,49,2],[55,0,57,2]]}
["Present Value Calculations tab - Lease 5 (column G)","Contract #",{"$f":"'Data Input'!G58","v":0}]
["Periodic Interest Rate (Section VII, #27-28 from Data Input tab)",{"$f":"'Data Input'!G266","v":0}]
["Cash Flows at Beginning or End (Section V, #19)",{"$f":"'Data Input'!G179","v":0},"Important:"]
["Number of payments (Section V, #18)",{"$f":"'Data Input'!G172","v":0},"Do not insert/delete/move"]
["Frequency of payments (Section V, #17)",{"$f":"'Data Input'!G166","v":0},"cells B2:B8"]
["Date of first payment (Section V, #20)",{"$f":"'Data Input'!G185","v":"00:00:00"},"(macros depend on them)"]
["Lease Start Date (Section V, #12)",{"$f":"'Data Input'!G150","v":"00:00:00"}]
["Lease End Date including Extensions (Section V, #15)",{"$f":"'Data Input'!G161","v":"00:00:00"}]
[]
["Fixed Lease Payment Receivable Schedule (Section VI, #21 & see instructions below):","Amount","# of Payments"]
["Payment Amount #1 & # of Payments at this amount",0,0]
["Payment Amount #2 & # of Payments at this amount",0,0]
["Payment Amount #3 & # of Payments at this amount",0,0]
["Payment Amount #4 & # of Payments at this amount",0,0]
["Totals from add'l table below (if needed)",{"$f":"B88","v":0},{"$f":"C88","v":0}]
["Total Lease Payments (sum of all payment amounts * # of payments)",{"$f":"(B11*C11)+(B12*C12)+(B13*C13)+(B14*C14)+(B15)","v":0},{"$f":"SUM(C11:C15)","v":0}]
[null,null,null,"Response per"]
["Other Payment Considerations:","Residual Value Guar","Allow for Uncollectible Amt","Data Input tab"]
["Residual Value Guarantee if Fixed-in-Substance (Section VI, #24a & b)",0,null,{"$f":"'Data Input'!G224","v":0}]
["Allowance for Uncollectible Leases (Section VI, #26)"]
["For example, could be calculated as a percentage of the total lease pmt rcvbl above",null,0,{"$f":"'Data Input'!G242","v":0}]
["Total Other Payment Considerations",{"$f":"SUM(B19:B21)","v":0}]
["Total Undiscounted Cash Flows (Total Payments + Other Considerations)",{"$f":"B16+B22","v":0}]
[null,null,"Important:"]
["Net Present Value (calculated after Macros below run)",{"$f":"SUM(G:G)","v":0},"Do not insert/delete/move"]
[null,null,"NPV must be cell B25"]
["Additions/Subtractions for Deferred Inflow of Resources (Section IV, #9-11)",{"$f":"'Data Input'!G124-'Data Input'!G127","v":0},"(macros depend on it)"]
["Deferred Inflow of Resources (calculated after Macros below run)",{"$f":"B25+B27","v":0}]
[]
["The Agency is not required to calculate the Present Value and/or enable Macros,"]
["but Steps 1 & 2 of the instructions below are REQUIRED to be completed."]
["After completing Steps 1 & 2, if desired to calculate the Present Value, complete Steps 3 - 8:"]
[]
["Note 1:  First make sure your Excel settings are correct -","See How to Enable Macros tab"]
["Note 2:  Please do not Insert, Delete, or Move any cells, columns or rows as this could cause the Macros to fail."]
["Note 3:  The Blue Cells in columns B & C are for manual input, and the Present Value Table will need to be adjusted in column F."]
["The Orange cells in columns B & C will automatically fill.  Also, the Present Value and Amortization Tables will be generated with the"]
["Macro buttons.  Please do not make changes to the orange cells or anywhere within the Tables (except column F)."]
[]
["Step 1 - Fill out the \"Fixed Lease Payment Receivable Schedule\" section above (starting on row 10)."]
["a - If payments escalate over time, list beginning payment amount & # of payments to be received at that amount, then move to line #2"]
["and list the next payment amount & # of payments at that amount, etc."]
["b - If an extension is deemed Reasonably Certain to be exercised, but the amount is listed as \"negotiable\", then use the lease"]
["payment amount just prior to the date of extension for those unknown amounts."]
["c - If a future payment is variable based on an index or interest rate, then calculate those future payments using the current index or rate."]
["d - If there is an Abated or Free Rent period (skipped payment) indicated in the lease contract,",null,"Desc of Lease Incentives"]
["indicate that with a $0 payment amount (col B) & the number of payments to be skipped (col C).",null,{"$f":"'Data Input'!G238","v":0}]
["Make sure to put these skipped payments in the correct order chronologically.  For example, if there"]
["is a Free Rent period for payment 13, then list the first 12 payments on the first line, then"]
["line #2 as $0 (col B) and 1 (col C), then line #3 as the continuing payments after the Free Rent period."]
["e - If a Bonus payment from the lessor is included in the contract, subtract that amount from the payment closest to the proper"]
["chronological period (as described in d above).  This may cause that payment amount to be negative."]
["f - Use the blue box below to describe how payments change over time.  For example - (a) Payment increases 5% every 10 yrs;"]
["(b) Appraisal to be completed every 25 years; or (c) Payment recalculated every 5 yrs based on CPI, etc."]
["Also describe payment frequency if Less Often than Annually."]
[]
[]
[]
["g - If payments are Less Often than Annually,indicate this in the Payment Schedule above by listing first payment on the first row (1 in"]
["col C), then the 2nd row should show how many years to be skipped in col C ($0 in col B), then the 3rd row will show the 2nd payment."]
["Repeat until all payments & all years are represented in the Payment Schdl (total in col C should tie to total yrs of lease term & cell B4)."]
["h - If there are not enough lines in the table above, use the table below to input the additional payment amounts, and the totals from"]
["the additional table will automatically be added to the Payment Schedule above."]
["i - Verify that the total # of payments in cell B4 is the same as the sum of col C (cell C16)."]
[]
["Additional Lease Payment Receivable Lines (if needed)","Amount","# of Payments"]
["Payment Amount #5 & # of Payments at this amount",0,0]
["Payment Amount #6 & # of Payments at this amount",0,0]
["Payment Amount #7 & # of Payments at this amount",0,0]
["Payment Amount #8 & # of Payments at this amount",0,0]
["Payment Amount #9 & # of Payments at this amount",0,0]
["Payment Amount #10 & # of Payments at this amount",0,0]
["Payment Amount #11 & # of Payments at this amount",0,0]
["Payment Amount #12 & # of Payments at this amount",0,0]
["Payment Amount #13 & # of Payments at this amount",0,0]
["Payment Amount #14 & # of Payments at this amount",0,0]
["Payment Amount #15 & # of Payments at this amount",0,0]
["Payment Amount #16 & # of Payments at this amount",0,0]
["Payment Amount #17 & # of Payments at this amount",0,0]
["Payment Amount #18 & # of Payments at this amount",0,0]
["Payment Amount #19 & # of Payments at this amount",0,0]
["Payment Amount #20 & # of Payments at this amount",0,0]
["Payment Amount #21 & # of Payments at this amount",0,0]
["Payment Amount #22 & # of Payments at this amount",0,0]
["Payment Amount #23 & # of Payments at this amount",0,0]
["Payment Amount #24 & # of Payments at this amount",0,0]
["Payment Amount #25 & # of Payments at this amount",0,0]
["Total Add'l Lease Payment Amts (will automatically be added to the Schedule above)",{"$f":"(B67*C67)+(B68*C68)+(B69*C69)+(B70*C70)+(B71*C71)+(B72*C72)+(B73*C73)+(B74*C74)+(B75*C75)+(B76*C76)+(B77*C77)+(B78*C78)+(B79*C79)+(B80*C80)+(B81*C81)+(B82*C82)+(B83*C83)+(B84*C84)+(B85*C85)+(B86*C86)+(B87*C87)","v":0},{"$f":"SUM(C67:C87)","v":0}]
[]
["Step 2 - Fill out the \"Other Payment Considerations\" section (starting on row 18) ONLY if instructed to do so on the Data Input tab"]
["(responses from Data Input tab are shown in col D)."]
["a - The Residual Value Guarantee line should only have an amount listed in Col B if it is Fixed In-Substance and not reliant on a future"]
["consideration (i.e. FMV of leased asset)."]
["b - The Allowance for Uncollectible Leases line should only have an amount listed in col C if economic circumstances, lessee"]
["creditworthiness, and historic information indicate a need for an allowance to be calculated.  This amount is listed in col C because"]
["it will not be calculated as part of the Present Value of the Lease Receivable, but will instead reduce the Present Value after it is"]
["calculated as a contra-receivable."]
[]
["Steps 3 - 8 are OPTIONAL (calculation of Present Value and Amortization Tables)"]
["Step 3 - Click the Macro button below to Generate the first 2 columns of the Present Value (PV) Table."]
[]
[]
["Step 4 - Using the Payment Receivable Schedule filled out in Steps 1 & 2, fill in the Payment Amounts into col F of the PV Table."]
["a - If there are 12 payments for the 1st payment amount, and 6 payments for the 2nd payment amount, list the 1st amount in the"]
["first 12 rows of the Table, then the 2nd amount for the next 6 rows, and do the same for the remaining payment amounts listed"]
["in the Payment Schedule until all the payments are filled in on the Table."]
["b - Make sure not to skip any Free Rent periods.  If the Payment Schedule indicates the 13th payment is $0, then row 13 of the"]
["Table should be $0, same as the Payment Schedule."]
["c - If there are any amounts listed for \"Other Payment Considerations\", add it to the final payment.  For example, if the final"]
["payment is $20,000, and there is a Residual Value Guarantee listed for $5,000, then the final payment in the Table should be $25,000."]
["d - Check to make sure that the sum of all the payments entered into col F of the Table is the same as the Total Undiscounted Cash"]
["Flows in cell B23."]
[]
["Step 5 - Click the Macro button below to Calculate Net Present Value and Generate the PV and Amortization Tables."]
[]
[]
[]
["Step 6 - Check data for accuracy:"]
["a - Check the date of the final payment in the Amortization Table and compare to Lease End Date in cell B8.  Make sure the final"]
["payment date is reasonable in comparison to the Lease End Date (within same month if payments are Monthly, within the final"]
["quarter if Quarterly, etc)."]
["b - If payments change (there are amounts in Payment Amount #2 + rows), then check the dates the amounts change in the"]
["Amort Table (columns K & M) to make sure the payments change on the correct dates as per the Lease Contract."]
["c - If 6a and 6b are BOTH correct, skip to Step 8 (Do NOT click the Start Over Macro Button)."]
["d - If 6a or 6b does not appear to be correct:"]
["i - Double-check the Instructions above (Steps 1 - 6), including the check for # of payments in 1i & check for Table payments in 4d."]
["ii - Double-check cells B2-B8 by reviewing the Lease Contract.  These cells automatically filled based on answers in the Data Input"]
["tab.  Make any necessary corrections in the Data Input tab (NOT in cells B2-B8) - the corresponding question #s are referenced above."]
["iii - Double-Check the Payment Schedule and Other Payment Considerations sections.  Compare back to the Lease contract to"]
["verify, and correct as necessary."]
["e - Once corrections have been made, click the Macro button below to Delete the PV & Amortization Tables."]
[]
[]
[]
["Step 7 - Repeat Steps 3-6 as needed until all checks (1i, 4d, 6a, 6b, and 6di-6diii) are correct."]
[]
["Step 8 - See Net Present Value calculated in cell B25 for the Lease Receivable and the Deferred Inflow of Resources in cell B28."]
["Also, see Present Value Table in columns E-G,"]
["and Amortization Table in columns J-P."]

{"sheet":"Lease 6 - PV Calc","index":10,"n_rows":139,"n_cols":4,"rows_kept":139,"cut":false,"hidden":false,"merged":[[46,2,49,2],[55,0,57,2]]}
["Present Value Calculations tab - Lease 6 (column H)","Contract #",{"$f":"'Data Input'!H58","v":0}]
["Periodic Interest Rate (Section VII, #27-28 from Data Input tab)",{"$f":"'Data Input'!H266","v":0}]
["Cash Flows at Beginning or End (Section V, #19)",{"$f":"'Data Input'!H179","v":0},"Important:"]
["Number of payments (Section V, #18)",{"$f":"'Data Input'!H172","v":0},"Do not insert/delete/move"]
["Frequency of payments (Section V, #17)",{"$f":"'Data Input'!H166","v":0},"cells B2:B8"]
["Date of first payment (Section V, #20)",{"$f":"'Data Input'!H185","v":"00:00:00"},"(macros depend on them)"]
["Lease Start Date (Section V, #12)",{"$f":"'Data Input'!H150","v":"00:00:00"}]
["Lease End Date including Extensions (Section V, #15)",{"$f":"'Data Input'!H161","v":"00:00:00"}]
[]
["Fixed Lease Payment Receivable Schedule (Section VI, #21 & see instructions below):","Amount","# of Payments"]
["Payment Amount #1 & # of Payments at this amount",0,0]
["Payment Amount #2 & # of Payments at this amount",0,0]
["Payment Amount #3 & # of Payments at this amount",0,0]
["Payment Amount #4 & # of Payments at this amount",0,0]
["Totals from add'l table below (if needed)",{"$f":"B88","v":0},{"$f":"C88","v":0}]
["Total Lease Payments (sum of all payment amounts * # of payments)",{"$f":"(B11*C11)+(B12*C12)+(B13*C13)+(B14*C14)+(B15)","v":0},{"$f":"SUM(C11:C15)","v":0}]
[null,null,null,"Response per"]
["Other Payment Considerations:","Residual Value Guar","Allow for Uncollectible Amt","Data Input tab"]
["Residual Value Guarantee if Fixed-in-Substance (Section VI, #24a & b)",0,null,{"$f":"'Data Input'!H224","v":0}]
["Allowance for Uncollectible Leases (Section VI, #26)"]
["For example, could be calculated as a percentage of the total lease pmt rcvbl above",null,0,{"$f":"'Data Input'!H242","v":0}]
["Total Other Payment Considerations",{"$f":"SUM(B19:B21)","v":0}]
["Total Undiscounted Cash Flows (Total Payments + Other Considerations)",{"$f":"B16+B22","v":0}]
[null,null,"Important:"]
["Net Present Value (calculated after Macros below run)",{"$f":"SUM(G:G)","v":0},"Do not insert/delete/move"]
[null,null,"NPV must be cell B25"]
["Additions/Subtractions for Deferred Inflow of Resources (Section IV, #9-11)",{"$f":"'Data Input'!H124-'Data Input'!H127","v":0},"(macros depend on it)"]
["Deferred Inflow of Resources (calculated after Macros below run)",{"$f":"B25+B27","v":0}]
[]
["The Agency is not required to calculate the Present Value and/or enable Macros,"]
["but Steps 1 & 2 of the instructions below are REQUIRED to be completed."]
["After completing Steps 1 & 2, if desired to calculate the Present Value, complete Steps 3 - 8:"]
[]
["Note 1:  First make sure your Excel settings are correct -","See How to Enable Macros tab"]
["Note 2:  Please do not Insert, Delete, or Move any cells, columns or rows as this could cause the Macros to fail."]
["Note 3:  The Blue Cells in columns B & C are for manual input, and the Present Value Table will need to be adjusted in column F."]
["The Orange cells in columns B & C will automatically fill.  Also, the Present Value and Amortization Tables will be generated with the"]
["Macro buttons.  Please do not make changes to the orange cells or anywhere within the Tables (except column F)."]
[]
["Step 1 - Fill out the \"Fixed Lease Payment Receivable Schedule\" section above (starting on row 10)."]
["a - If payments escalate over time, list beginning payment amount & # of payments to be received at that amount, then move to line #2"]
["and list the next payment amount & # of payments at that amount, etc."]
["b - If an extension is deemed Reasonably Certain to be exercised, but the amount is listed as \"negotiable\", then use the lease"]
["payment amount just prior to the date of extension for those unknown amounts."]
["c - If a future payment is variable based on an index or interest rate, then calculate those future payments using the current index or rate."]
["d - If there is an Abated or Free Rent period (skipped payment) indicated in the lease contract,",null,"Desc of Lease Incentives"]
["indicate that with a $0 payment amount (col B) & the number of payments to be skipped (col C).",null,{"$f":"'Data Input'!H238","v":0}]
["Make sure to put these skipped payments in the correct order chronologically.  For example, if there"]
["is a Free Rent period for payment 13, then list the first 12 payments on the first line, then"]
["line #2 as $0 (col B) and 1 (col C), then line #3 as the continuing payments after the Free Rent period."]
["e - If a Bonus payment from the lessor is included in the contract, subtract that amount from the payment closest to the proper"]
["chronological period (as described in d above).  This may cause that payment amount to be negative."]
["f - Use the blue box below to describe how payments change over time.  For example - (a) Payment increases 5% every 10 yrs;"]
["(b) Appraisal to be completed every 25 years; or (c) Payment recalculated every 5 yrs based on CPI, etc."]
["Also describe payment frequency if Less Often than Annually."]
[]
[]
[]
["g - If payments are Less Often than Annually,indicate this in the Payment Schedule above by listing first payment on the first row (1 in"]
["col C), then the 2nd row should show how many years to be skipped in col C ($0 in col B), then the 3rd row will show the 2nd payment."]
["Repeat until all payments & all years are represented in the Payment Schdl (total in col C should tie to total yrs of lease term & cell B4)."]
["h - If there are not enough lines in the table above, use the table below to input the additional payment amounts, and the totals from"]
["the additional table will automatically be added to the Payment Schedule above."]
["i - Verify that the total # of payments in cell B4 is the same as the sum of col C (cell C16)."]
[]
["Additional Lease Payment Receivable Lines (if needed)","Amount","# of Payments"]
["Payment Amount #5 & # of Payments at this amount",0,0]
["Payment Amount #6 & # of Payments at this amount",0,0]
["Payment Amount #7 & # of Payments at this amount",0,0]
["Payment Amount #8 & # of Payments at this amount",0,0]
["Payment Amount #9 & # of Payments at this amount",0,0]
["Payment Amount #10 & # of Payments at this amount",0,0]
["Payment Amount #11 & # of Payments at this amount",0,0]
["Payment Amount #12 & # of Payments at this amount",0,0]
["Payment Amount #13 & # of Payments at this amount",0,0]
["Payment Amount #14 & # of Payments at this amount",0,0]
["Payment Amount #15 & # of Payments at this amount",0,0]
["Payment Amount #16 & # of Payments at this amount",0,0]
["Payment Amount #17 & # of Payments at this amount",0,0]
["Payment Amount #18 & # of Payments at this amount",0,0]
["Payment Amount #19 & # of Payments at this amount",0,0]
["Payment Amount #20 & # of Payments at this amount",0,0]
["Payment Amount #21 & # of Payments at this amount",0,0]
["Payment Amount #22 & # of Payments at this amount",0,0]
["Payment Amount #23 & # of Payments at this amount",0,0]
["Payment Amount #24 & # of Payments at this amount",0,0]
["Payment Amount #25 & # of Payments at this amount",0,0]
["Total Add'l Lease Payment Amts (will automatically be added to the Schedule above)",{"$f":"(B67*C67)+(B68*C68)+(B69*C69)+(B70*C70)+(B71*C71)+(B72*C72)+(B73*C73)+(B74*C74)+(B75*C75)+(B76*C76)+(B77*C77)+(B78*C78)+(B79*C79)+(B80*C80)+(B81*C81)+(B82*C82)+(B83*C83)+(B84*C84)+(B85*C85)+(B86*C86)+(B87*C87)","v":0},{"$f":"SUM(C67:C87)","v":0}]
[]
["Step 2 - Fill out the \"Other Payment Considerations\" section (starting on row 18) ONLY if instructed to do so on the Data Input tab"]
["(responses from Data Input tab are shown in col D)."]
["a - The Residual Value Guarantee line should only have an amount listed in Col B if it is Fixed In-Substance and not reliant on a future"]
["consideration (i.e. FMV of leased asset)."]
["b - The Allowance for Uncollectible Leases line should only have an amount listed in col C if economic circumstances, lessee"]
["creditworthiness, and historic information indicate a need for an allowance to be calculated.  This amount is listed in col C because"]
["it will not be calculated as part of the Present Value of the Lease Receivable, but will instead reduce the Present Value after it is"]
["calculated as a contra-receivable."]
[]
["Steps 3 - 8 are OPTIONAL (calculation of Present Value and Amortization Tables)"]
["Step 3 - Click the Macro button below to Generate the first 2 columns of the Present Value (PV) Table."]
[]
[]
["Step 4 - Using the Payment Receivable Schedule filled out in Steps 1 & 2, fill in the Payment Amounts into col F of the PV Table."]
["a - If there are 12 payments for the 1st payment amount, and 6 payments for the 2nd payment amount, list the 1st amount in the"]
["first 12 rows of the Table, then the 2nd amount for the next 6 rows, and do the same for the remaining payment amounts listed"]
["in the Payment Schedule until all the payments are filled in on the Table."]
["b - Make sure not to skip any Free Rent periods.  If the Payment Schedule indicates the 13th payment is $0, then row 13 of the"]
["Table should be $0, same as the Payment Schedule."]
["c - If there are any amounts listed for \"Other Payment Considerations\", add it to the final payment.  For example, if the final"]
["payment is $20,000, and there is a Residual Value Guarantee listed for $5,000, then the final payment in the Table should be $25,000."]
["d - Check to make sure that the sum of all the payments entered into col F of the Table is the same as the Total Undiscounted Cash"]
["Flows in cell B23."]
[]
["Step 5 - Click the Macro button below to Calculate Net Present Value and Generate the PV and Amortization Tables."]
[]
[]
[]
["Step 6 - Check data for accuracy:"]
["a - Check the date of the final payment in the Amortization Table and compare to Lease End Date in cell B8.  Make sure the final"]
["payment date is reasonable in comparison to the Lease End Date (within same month if payments are Monthly, within the final"]
["quarter if Quarterly, etc)."]
["b - If payments change (there are amounts in Payment Amount #2 + rows), then check the dates the amounts change in the"]
["Amort Table (columns K & M) to make sure the payments change on the correct dates as per the Lease Contract."]
["c - If 6a and 6b are BOTH correct, skip to Step 8 (Do NOT click the Start Over Macro Button)."]
["d - If 6a or 6b does not appear to be correct:"]
["i - Double-check the Instructions above (Steps 1 - 6), including the check for # of payments in 1i & check for Table payments in 4d."]
["ii - Double-check cells B2-B8 by reviewing the Lease Contract.  These cells automatically filled based on answers in the Data Input"]
["tab.  Make any necessary corrections in the Data Input tab (NOT in cells B2-B8) - the corresponding question #s are referenced above."]
["iii - Double-Check the Payment Schedule and Other Payment Considerations sections.  Compare back to the Lease contract to"]
["verify, and correct as necessary."]
["e - Once corrections have been made, click the Macro button below to Delete the PV & Amortization Tables."]
[]
[]
[]
["Step 7 - Repeat Steps 3-6 as needed until all checks (1i, 4d, 6a, 6b, and 6di-6diii) are correct."]
[]
["Step 8 - See Net Present Value calculated in cell B25 for the Lease Receivable and the Deferred Inflow of Resources in cell B28."]
["Also, see Present Value Table in columns E-G,"]
["and Amortization Table in columns J-P."]

{"sheet":"Lease 7 - PV Calc","index":11,"n_rows":139,"n_cols":4,"rows_kept":139,"cut":false,"hidden":false,"merged":[[46,2,49,2],[55,0,57,2]]}
["Present Value Calculations tab - Lease 7 (column I)","Contract #",{"$f":"'Data Input'!I58","v":0}]
["Periodic Interest Rate (Section VII, #27-28 from Data Input tab)",{"$f":"'Data Input'!I266","v":0}]
["Cash Flows at Beginning or End (Section V, #19)",{"$f":"'Data Input'!I179","v":0},"Important:"]
["Number of payments (Section V, #18)",{"$f":"'Data Input'!I172","v":0},"Do not insert/delete/move"]
["Frequency of payments (Section V, #17)",{"$f":"'Data Input'!I166","v":0},"cells B2:B8"]
["Date of first payment (Section V, #20)",{"$f":"'Data Input'!I185","v":"00:00:00"},"(macros depend on them)"]
["Lease Start Date (Section V, #12)",{"$f":"'Data Input'!I150","v":"00:00:00"}]
["Lease End Date including Extensions (Section V, #15)",{"$f":"'Data Input'!I161","v":"00:00:00"}]
[]
["Fixed Lease Payment Receivable Schedule (Section VI, #21 & see instructions below):","Amount","# of Payments"]
["Payment Amount #1 & # of Payments at this amount",0,0]
["Payment Amount #2 & # of Payments at this amount",0,0]
["Payment Amount #3 & # of Payments at this amount",0,0]
["Payment Amount #4 & # of Payments at this amount",0,0]
["Totals from add'l table below (if needed)",{"$f":"B88","v":0},{"$f":"C88","v":0}]
["Total Lease Payments (sum of all payment amounts * # of payments)",{"$f":"(B11*C11)+(B12*C12)+(B13*C13)+(B14*C14)+(B15)","v":0},{"$f":"SUM(C11:C15)","v":0}]
[null,null,null,"Response per"]
["Other Payment Considerations:","Residual Value Guar","Allow for Uncollectible Amt","Data Input tab"]
["Residual Value Guarantee if Fixed-in-Substance (Section VI, #24a & b)",0,null,{"$f":"'Data Input'!I224","v":0}]
["Allowance for Uncollectible Leases (Section VI, #26)"]
["For example, could be calculated as a percentage of the total lease pmt rcvbl above",null,0,{"$f":"'Data Input'!I242","v":0}]
["Total Other Payment Considerations",{"$f":"SUM(B19:B21)","v":0}]
["Total Undiscounted Cash Flows (Total Payments + Other Considerations)",{"$f":"B16+B22","v":0}]
[null,null,"Important:"]
["Net Present Value (calculated after Macros below run)",{"$f":"SUM(G:G)","v":0},"Do not insert/delete/move"]
[null,null,"NPV must be cell B25"]
["Additions/Subtractions for Deferred Inflow of Resources (Section IV, #9-11)",{"$f":"'Data Input'!I124-'Data Input'!I127","v":0},"(macros depend on it)"]
["Deferred Inflow of Resources (calculated after Macros below run)",{"$f":"B25+B27","v":0}]
[]
["The Agency is not required to calculate the Present Value and/or enable Macros,"]
["but Steps 1 & 2 of the instructions below are REQUIRED to be completed."]
["After completing Steps 1 & 2, if desired to calculate the Present Value, complete Steps 3 - 8:"]
[]
["Note 1:  First make sure your Excel settings are correct -","See How to Enable Macros tab"]
["Note 2:  Please do not Insert, Delete, or Move any cells, columns or rows as this could cause the Macros to fail."]
["Note 3:  The Blue Cells in columns B & C are for manual input, and the Present Value Table will need to be adjusted in column F."]
["The Orange cells in columns B & C will automatically fill.  Also, the Present Value and Amortization Tables will be generated with the"]
["Macro buttons.  Please do not make changes to the orange cells or anywhere within the Tables (except column F)."]
[]
["Step 1 - Fill out the \"Fixed Lease Payment Receivable Schedule\" section above (starting on row 10)."]
["a - If payments escalate over time, list beginning payment amount & # of payments to be received at that amount, then move to line #2"]
["and list the next payment amount & # of payments at that amount, etc."]
["b - If an extension is deemed Reasonably Certain to be exercised, but the amount is listed as \"negotiable\", then use the lease"]
["payment amount just prior to the date of extension for those unknown amounts."]
["c - If a future payment is variable based on an index or interest rate, then calculate those future payments using the current index or rate."]
["d - If there is an Abated or Free Rent period (skipped payment) indicated in the lease contract,",null,"Desc of Lease Incentives"]
["indicate that with a $0 payment amount (col B) & the number of payments to be skipped (col C).",null,{"$f":"'Data Input'!I238","v":0}]
["Make sure to put these skipped payments in the correct order chronologically.  For example, if there"]
["is a Free Rent period for payment 13, then list the first 12 payments on the first line, then"]
["line #2 as $0 (col B) and 1 (col C), then line #3 as the continuing payments after the Free Rent period."]
["e - If a Bonus payment from the lessor is included in the contract, subtract that amount from the payment closest to the proper"]
["chronological period (as described in d above).  This may cause that payment amount to be negative."]
["f - Use the blue box below to describe how payments change over time.  For example - (a) Payment increases 5% every 10 yrs;"]
["(b) Appraisal to be completed every 25 years; or (c) Payment recalculated every 5 yrs based on CPI, etc."]
["Also describe payment frequency if Less Often than Annually."]
[]
[]
[]
["g - If payments are Less Often than Annually,indicate this in the Payment Schedule above by listing first payment on the first row (1 in"]
["col C), then the 2nd row should show how many years to be skipped in col C ($0 in col B), then the 3rd row will show the 2nd payment."]
["Repeat until all payments & all years are represented in the Payment Schdl (total in col C should tie to total yrs of lease term & cell B4)."]
["h - If there are not enough lines in the table above, use the table below to input the additional payment amounts, and the totals from"]
["the additional table will automatically be added to the Payment Schedule above."]
["i - Verify that the total # of payments in cell B4 is the same as the sum of col C (cell C16)."]
[]
["Additional Lease Payment Receivable Lines (if needed)","Amount","# of Payments"]
["Payment Amount #5 & # of Payments at this amount",0,0]
["Payment Amount #6 & # of Payments at this amount",0,0]
["Payment Amount #7 & # of Payments at this amount",0,0]
["Payment Amount #8 & # of Payments at this amount",0,0]
["Payment Amount #9 & # of Payments at this amount",0,0]
["Payment Amount #10 & # of Payments at this amount",0,0]
["Payment Amount #11 & # of Payments at this amount",0,0]
["Payment Amount #12 & # of Payments at this amount",0,0]
["Payment Amount #13 & # of Payments at this amount",0,0]
["Payment Amount #14 & # of Payments at this amount",0,0]
["Payment Amount #15 & # of Payments at this amount",0,0]
["Payment Amount #16 & # of Payments at this amount",0,0]
["Payment Amount #17 & # of Payments at this amount",0,0]
["Payment Amount #18 & # of Payments at this amount",0,0]
["Payment Amount #19 & # of Payments at this amount",0,0]
["Payment Amount #20 & # of Payments at this amount",0,0]
["Payment Amount #21 & # of Payments at this amount",0,0]
["Payment Amount #22 & # of Payments at this amount",0,0]
["Payment Amount #23 & # of Payments at this amount",0,0]
["Payment Amount #24 & # of Payments at this amount",0,0]
["Payment Amount #25 & # of Payments at this amount",0,0]
["Total Add'l Lease Payment Amts (will automatically be added to the Schedule above)",{"$f":"(B67*C67)+(B68*C68)+(B69*C69)+(B70*C70)+(B71*C71)+(B72*C72)+(B73*C73)+(B74*C74)+(B75*C75)+(B76*C76)+(B77*C77)+(B78*C78)+(B79*C79)+(B80*C80)+(B81*C81)+(B82*C82)+(B83*C83)+(B84*C84)+(B85*C85)+(B86*C86)+(B87*C87)","v":0},{"$f":"SUM(C67:C87)","v":0}]
[]
["Step 2 - Fill out the \"Other Payment Considerations\" section (starting on row 18) ONLY if instructed to do so on the Data Input tab"]
["(responses from Data Input tab are shown in col D)."]
["a - The Residual Value Guarantee line should only have an amount listed in Col B if it is Fixed In-Substance and not reliant on a future"]
["consideration (i.e. FMV of leased asset)."]
["b - The Allowance for Uncollectible Leases line should only have an amount listed in col C if economic circumstances, lessee"]
["creditworthiness, and historic information indicate a need for an allowance to be calculated.  This amount is listed in col C because"]
["it will not be calculated as part of the Present Value of the Lease Receivable, but will instead reduce the Present Value after it is"]
["calculated as a contra-receivable."]
[]
["Steps 3 - 8 are OPTIONAL (calculation of Present Value and Amortization Tables)"]
["Step 3 - Click the Macro button below to Generate the first 2 columns of the Present Value (PV) Table."]
[]
[]
["Step 4 - Using the Payment Receivable Schedule filled out in Steps 1 & 2, fill in the Payment Amounts into col F of the PV Table."]
["a - If there are 12 payments for the 1st payment amount, and 6 payments for the 2nd payment amount, list the 1st amount in the"]
["first 12 rows of the Table, then the 2nd amount for the next 6 rows, and do the same for the remaining payment amounts listed"]
["in the Payment Schedule until all the payments are filled in on the Table."]
["b - Make sure not to skip any Free Rent periods.  If the Payment Schedule indicates the 13th payment is $0, then row 13 of the"]
["Table should be $0, same as the Payment Schedule."]
["c - If there are any amounts listed for \"Other Payment Considerations\", add it to the final payment.  For example, if the final"]
["payment is $20,000, and there is a Residual Value Guarantee listed for $5,000, then the final payment in the Table should be $25,000."]
["d - Check to make sure that the sum of all the payments entered into col F of the Table is the same as the Total Undiscounted Cash"]
["Flows in cell B23."]
[]
["Step 5 - Click the Macro button below to Calculate Net Present Value and Generate the PV and Amortization Tables."]
[]
[]
[]
["Step 6 - Check data for accuracy:"]
["a - Check the date of the final payment in the Amortization Table and compare to Lease End Date in cell B8.  Make sure the final"]
["payment date is reasonable in comparison to the Lease End Date (within same month if payments are Monthly, within the final"]
["quarter if Quarterly, etc)."]
["b - If payments change (there are amounts in Payment Amount #2 + rows), then check the dates the amounts change in the"]
["Amort Table (columns K & M) to make sure the payments change on the correct dates as per the Lease Contract."]
["c - If 6a and 6b are BOTH correct, skip to Step 8 (Do NOT click the Start Over Macro Button)."]
["d - If 6a or 6b does not appear to be correct:"]
["i - Double-check the Instructions above (Steps 1 - 6), including the check for # of payments in 1i & check for Table payments in 4d."]
["ii - Double-check cells B2-B8 by reviewing the Lease Contract.  These cells automatically filled based on answers in the Data Input"]
["tab.  Make any necessary corrections in the Data Input tab (NOT in cells B2-B8) - the corresponding question #s are referenced above."]
["iii - Double-Check the Payment Schedule and Other Payment Considerations sections.  Compare back to the Lease contract to"]
["verify, and correct as necessary."]
["e - Once corrections have been made, click the Macro button below to Delete the PV & Amortization Tables."]
[]
[]
[]
["Step 7 - Repeat Steps 3-6 as needed until all checks (1i, 4d, 6a, 6b, and 6di-6diii) are correct."]
[]
["Step 8 - See Net Present Value calculated in cell B25 for the Lease Receivable and the Deferred Inflow of Resources in cell B28."]
["Also, see Present Value Table in columns E-G,"]
["and Amortization Table in columns J-P."]

{"sheet":"Lease 8 - PV Calc","index":12,"n_rows":139,"n_cols":4,"rows_kept":139,"cut":false,"hidden":false,"merged":[[46,2,49,2],[55,0,57,2]]}
["Present Value Calculations tab - Lease 8 (column J)","Contract #",{"$f":"'Data Input'!J58","v":0}]
["Periodic Interest Rate (Section VII, #27-28 from Data Input tab)",{"$f":"'Data Input'!J266","v":0}]
["Cash Flows at Beginning or End (Section V, #19)",{"$f":"'Data Input'!J179","v":0},"Important:"]
["Number of payments (Section V, #18)",{"$f":"'Data Input'!J172","v":0},"Do not insert/delete/move"]
["Frequency of payments (Section V, #17)",{"$f":"'Data Input'!J166","v":0},"cells B2:B8"]
["Date of first payment (Section V, #20)",{"$f":"'Data Input'!J185","v":"00:00:00"},"(macros depend on them)"]
["Lease Start Date (Section V, #12)",{"$f":"'Data Input'!J150","v":"00:00:00"}]
["Lease End Date including Extensions (Section V, #15)",{"$f":"'Data Input'!J161","v":"00:00:00"}]
[]
["Fixed Lease Payment Receivable Schedule (Section VI, #21 & see instructions below):","Amount","# of Payments"]
["Payment Amount #1 & # of Payments at this amount",0,0]
["Payment Amount #2 & # of Payments at this amount",0,0]
["Payment Amount #3 & # of Payments at this amount",0,0]
["Payment Amount #4 & # of Payments at this amount",0,0]
["Totals from add'l table below (if needed)",{"$f":"B88","v":0},{"$f":"C88","v":0}]
["Total Lease Payments (sum of all payment amounts * # of payments)",{"$f":"(B11*C11)+(B12*C12)+(B13*C13)+(B14*C14)+(B15)","v":0},{"$f":"SUM(C11:C15)","v":0}]
[null,null,null,"Response per"]
["Other Payment Considerations:","Residual Value Guar","Allow for Uncollectible Amt","Data Input tab"]
["Residual Value Guarantee if Fixed-in-Substance (Section VI, #24a & b)",0,null,{"$f":"'Data Input'!J224","v":0}]
["Allowance for Uncollectible Leases (Section VI, #26)"]
["For example, could be calculated as a percentage of the total lease pmt rcvbl above",null,0,{"$f":"'Data Input'!J242","v":0}]
["Total Other Payment Considerations",{"$f":"SUM(B19:B21)","v":0}]
["Total Undiscounted Cash Flows (Total Payments + Other Considerations)",{"$f":"B16+B22","v":0}]
[null,null,"Important:"]
["Net Present Value (calculated after Macros below run)",{"$f":"SUM(G:G)","v":0},"Do not insert/delete/move"]
[null,null,"NPV must be cell B25"]
["Additions/Subtractions for Deferred Inflow of Resources (Section IV, #9-11)",{"$f":"'Data Input'!J124-'Data Input'!J127","v":0},"(macros depend on it)"]
["Deferred Inflow of Resources (calculated after Macros below run)",{"$f":"B25+B27","v":0}]
[]
["The Agency is not required to calculate the Present Value and/or enable Macros,"]
["but Steps 1 & 2 of the instructions below are REQUIRED to be completed."]
["After completing Steps 1 & 2, if desired to calculate the Present Value, complete Steps 3 - 8:"]
[]
["Note 1:  First make sure your Excel settings are correct -","See How to Enable Macros tab"]
["Note 2:  Please do not Insert, Delete, or Move any cells, columns or rows as this could cause the Macros to fail."]
["Note 3:  The Blue Cells in columns B & C are for manual input, and the Present Value Table will need to be adjusted in column F."]
["The Orange cells in columns B & C will automatically fill.  Also, the Present Value and Amortization Tables will be generated with the"]
["Macro buttons.  Please do not make changes to the orange cells or anywhere within the Tables (except column F)."]
[]
["Step 1 - Fill out the \"Fixed Lease Payment Receivable Schedule\" section above (starting on row 10)."]
["a - If payments escalate over time, list beginning payment amount & # of payments to be received at that amount, then move to line #2"]
["and list the next payment amount & # of payments at that amount, etc."]
["b - If an extension is deemed Reasonably Certain to be exercised, but the amount is listed as \"negotiable\", then use the lease"]
["payment amount just prior to the date of extension for those unknown amounts."]
["c - If a future payment is variable based on an index or interest rate, then calculate those future payments using the current index or rate."]
["d - If there is an Abated or Free Rent period (skipped payment) indicated in the lease contract,",null,"Desc of Lease Incentives"]
["indicate that with a $0 payment amount (col B) & the number of payments to be skipped (col C).",null,{"$f":"'Data Input'!J238","v":0}]
["Make sure to put these skipped payments in the correct order chronologically.  For example, if there"]
["is a Free Rent period for payment 13, then list the first 12 payments on the first line, then"]
["line #2 as $0 (col B) and 1 (col C), then line #3 as the continuing payments after the Free Rent period."]
["e - If a Bonus payment from the lessor is included in the contract, subtract that amount from the payment closest to the proper"]
["chronological period (as described in d above).  This may cause that payment amount to be negative."]
["f - Use the blue box below to describe how payments change over time.  For example - (a) Payment increases 5% every 10 yrs;"]
["(b) Appraisal to be completed every 25 years; or (c) Payment recalculated every 5 yrs based on CPI, etc."]
["Also describe payment frequency if Less Often than Annually."]
[]
[]
[]
["g - If payments are Less Often than Annually,indicate this in the Payment Schedule above by listing first payment on the first row (1 in"]
["col C), then the 2nd row should show how many years to be skipped in col C ($0 in col B), then the 3rd row will show the 2nd payment."]
["Repeat until all payments & all years are represented in the Payment Schdl (total in col C should tie to total yrs of lease term & cell B4)."]
["h - If there are not enough lines in the table above, use the table below to input the additional payment amounts, and the totals from"]
["the additional table will automatically be added to the Payment Schedule above."]
["i - Verify that the total # of payments in cell B4 is the same as the sum of col C (cell C16)."]
[]
["Additional Lease Payment Receivable Lines (if needed)","Amount","# of Payments"]
["Payment Amount #5 & # of Payments at this amount",0,0]
["Payment Amount #6 & # of Payments at this amount",0,0]
["Payment Amount #7 & # of Payments at this amount",0,0]
["Payment Amount #8 & # of Payments at this amount",0,0]
["Payment Amount #9 & # of Payments at this amount",0,0]
["Payment Amount #10 & # of Payments at this amount",0,0]
["Payment Amount #11 & # of Payments at this amount",0,0]
["Payment Amount #12 & # of Payments at this amount",0,0]
["Payment Amount #13 & # of Payments at this amount",0,0]
["Payment Amount #14 & # of Payments at this amount",0,0]
["Payment Amount #15 & # of Payments at this amount",0,0]
["Payment Amount #16 & # of Payments at this amount",0,0]
["Payment Amount #17 & # of Payments at this amount",0,0]
["Payment Amount #18 & # of Payments at this amount",0,0]
["Payment Amount #19 & # of Payments at this amount",0,0]
["Payment Amount #20 & # of Payments at this amount",0,0]
["Payment Amount #21 & # of Payments at this amount",0,0]
["Payment Amount #22 & # of Payments at this amount",0,0]
["Payment Amount #23 & # of Payments at this amount",0,0]
["Payment Amount #24 & # of Payments at this amount",0,0]
["Payment Amount #25 & # of Payments at this amount",0,0]
["Total Add'l Lease Payment Amts (will automatically be added to the Schedule above)",{"$f":"(B67*C67)+(B68*C68)+(B69*C69)+(B70*C70)+(B71*C71)+(B72*C72)+(B73*C73)+(B74*C74)+(B75*C75)+(B76*C76)+(B77*C77)+(B78*C78)+(B79*C79)+(B80*C80)+(B81*C81)+(B82*C82)+(B83*C83)+(B84*C84)+(B85*C85)+(B86*C86)+(B87*C87)","v":0},{"$f":"SUM(C67:C87)","v":0}]
[]
["Step 2 - Fill out the \"Other Payment Considerations\" section (starting on row 18) ONLY if instructed to do so on the Data Input tab"]
["(responses from Data Input tab are shown in col D)."]
["a - The Residual Value Guarantee line should only have an amount listed in Col B if it is Fixed In-Substance and not reliant on a future"]
["consideration (i.e. FMV of leased asset)."]
["b - The Allowance for Uncollectible Leases line should only have an amount listed in col C if economic circumstances, lessee"]
["creditworthiness, and historic information indicate a need for an allowance to be calculated.  This amount is listed in col C because"]
["it will not be calculated as part of the Present Value of the Lease Receivable, but will instead reduce the Present Value after it is"]
["calculated as a contra-receivable."]
[]
["Steps 3 - 8 are OPTIONAL (calculation of Present Value and Amortization Tables)"]
["Step 3 - Click the Macro button below to Generate the first 2 columns of the Present Value (PV) Table."]
[]
[]
["Step 4 - Using the Payment Receivable Schedule filled out in Steps 1 & 2, fill in the Payment Amounts into col F of the PV Table."]
["a - If there are 12 payments for the 1st payment amount, and 6 payments for the 2nd payment amount, list the 1st amount in the"]
["first 12 rows of the Table, then the 2nd amount for the next 6 rows, and do the same for the remaining payment amounts listed"]
["in the Payment Schedule until all the payments are filled in on the Table."]
["b - Make sure not to skip any Free Rent periods.  If the Payment Schedule indicates the 13th payment is $0, then row 13 of the"]
["Table should be $0, same as the Payment Schedule."]
["c - If there are any amounts listed for \"Other Payment Considerations\", add it to the final payment.  For example, if the final"]
["payment is $20,000, and there is a Residual Value Guarantee listed for $5,000, then the final payment in the Table should be $25,000."]
["d - Check to make sure that the sum of all the payments entered into col F of the Table is the same as the Total Undiscounted Cash"]
["Flows in cell B23."]
[]
["Step 5 - Click the Macro button below to Calculate Net Present Value and Generate the PV and Amortization Tables."]
[]
[]
[]
["Step 6 - Check data for accuracy:"]
["a - Check the date of the final payment in the Amortization Table and compare to Lease End Date in cell B8.  Make sure the final"]
["payment date is reasonable in comparison to the Lease End Date (within same month if payments are Monthly, within the final"]
["quarter if Quarterly, etc)."]
["b - If payments change (there are amounts in Payment Amount #2 + rows), then check the dates the amounts change in the"]
["Amort Table (columns K & M) to make sure the payments change on the correct dates as per the Lease Contract."]
["c - If 6a and 6b are BOTH correct, skip to Step 8 (Do NOT click the Start Over Macro Button)."]
["d - If 6a or 6b does not appear to be correct:"]
["i - Double-check the Instructions above (Steps 1 - 6), including the check for # of payments in 1i & check for Table payments in 4d."]
["ii - Double-check cells B2-B8 by reviewing the Lease Contract.  These cells automatically filled based on answers in the Data Input"]
["tab.  Make any necessary corrections in the Data Input tab (NOT in cells B2-B8) - the corresponding question #s are referenced above."]
["iii - Double-Check the Payment Schedule and Other Payment Considerations sections.  Compare back to the Lease contract to"]
["verify, and correct as necessary."]
["e - Once corrections have been made, click the Macro button below to Delete the PV & Amortization Tables."]
[]
[]
[]
["Step 7 - Repeat Steps 3-6 as needed until all checks (1i, 4d, 6a, 6b, and 6di-6diii) are correct."]
[]
["Step 8 - See Net Present Value calculated in cell B25 for the Lease Receivable and the Deferred Inflow of Resources in cell B28."]
["Also, see Present Value Table in columns E-G,"]
["and Amortization Table in columns J-P."]

{"sheet":"Lease 9 - PV Calc","index":13,"n_rows":139,"n_cols":4,"rows_kept":139,"cut":false,"hidden":false,"merged":[[46,2,49,2],[55,0,57,2]]}
["Present Value Calculations tab - Lease 9 (column K)","Contract #",{"$f":"'Data Input'!K58","v":0}]
["Periodic Interest Rate (Section VII, #27-28 from Data Input tab)",{"$f":"'Data Input'!K266","v":0}]
["Cash Flows at Beginning or End (Section V, #19)",{"$f":"'Data Input'!K179","v":0},"Important:"]
["Number of payments (Section V, #18)",{"$f":"'Data Input'!K172","v":0},"Do not insert/delete/move"]
["Frequency of payments (Section V, #17)",{"$f":"'Data Input'!K166","v":0},"cells B2:B8"]
["Date of first payment (Section V, #20)",{"$f":"'Data Input'!K185","v":"00:00:00"},"(macros depend on them)"]
["Lease Start Date (Section V, #12)",{"$f":"'Data Input'!K150","v":"00:00:00"}]
["Lease End Date including Extensions (Section V, #15)",{"$f":"'Data Input'!K161","v":"00:00:00"}]
[]
["Fixed Lease Payment Receivable Schedule (Section VI, #21 & see instructions below):","Amount","# of Payments"]
["Payment Amount #1 & # of Payments at this amount",0,0]
["Payment Amount #2 & # of Payments at this amount",0,0]
["Payment Amount #3 & # of Payments at this amount",0,0]
["Payment Amount #4 & # of Payments at this amount",0,0]
["Totals from add'l table below (if needed)",{"$f":"B88","v":0},{"$f":"C88","v":0}]
["Total Lease Payments (sum of all payment amounts * # of payments)",{"$f":"(B11*C11)+(B12*C12)+(B13*C13)+(B14*C14)+(B15)","v":0},{"$f":"SUM(C11:C15)","v":0}]
[null,null,null,"Response per"]
["Other Payment Considerations:","Residual Value Guar","Allow for Uncollectible Amt","Data Input tab"]
["Residual Value Guarantee if Fixed-in-Substance (Section VI, #24a & b)",0,null,{"$f":"'Data Input'!K224","v":0}]
["Allowance for Uncollectible Leases (Section VI, #26)"]
["For example, could be calculated as a percentage of the total lease pmt rcvbl above",null,0,{"$f":"'Data Input'!K242","v":0}]
["Total Other Payment Considerations",{"$f":"SUM(B19:B21)","v":0}]
["Total Undiscounted Cash Flows (Total Payments + Other Considerations)",{"$f":"B16+B22","v":0}]
[null,null,"Important:"]
["Net Present Value (calculated after Macros below run)",{"$f":"SUM(G:G)","v":0},"Do not insert/delete/move"]
[null,null,"NPV must be cell B25"]
["Additions/Subtractions for Deferred Inflow of Resources (Section IV, #9-11)",{"$f":"'Data Input'!K124-'Data Input'!K127","v":0},"(macros depend on it)"]
["Deferred Inflow of Resources (calculated after Macros below run)",{"$f":"B25+B27","v":0}]
[]
["The Agency is not required to calculate the Present Value and/or enable Macros,"]
["but Steps 1 & 2 of the instructions below are REQUIRED to be completed."]
["After completing Steps 1 & 2, if desired to calculate the Present Value, complete Steps 3 - 8:"]
[]
["Note 1:  First make sure your Excel settings are correct -","See How to Enable Macros tab"]
["Note 2:  Please do not Insert, Delete, or Move any cells, columns or rows as this could cause the Macros to fail."]
["Note 3:  The Blue Cells in columns B & C are for manual input, and the Present Value Table will need to be adjusted in column F."]
["The Orange cells in columns B & C will automatically fill.  Also, the Present Value and Amortization Tables will be generated with the"]
["Macro buttons.  Please do not make changes to the orange cells or anywhere within the Tables (except column F)."]
[]
["Step 1 - Fill out the \"Fixed Lease Payment Receivable Schedule\" section above (starting on row 10)."]
["a - If payments escalate over time, list beginning payment amount & # of payments to be received at that amount, then move to line #2"]
["and list the next payment amount & # of payments at that amount, etc."]
["b - If an extension is deemed Reasonably Certain to be exercised, but the amount is listed as \"negotiable\", then use the lease"]
["payment amount just prior to the date of extension for those unknown amounts."]
["c - If a future payment is variable based on an index or interest rate, then calculate those future payments using the current index or rate."]
["d - If there is an Abated or Free Rent period (skipped payment) indicated in the lease contract,",null,"Desc of Lease Incentives"]
["indicate that with a $0 payment amount (col B) & the number of payments to be skipped (col C).",null,{"$f":"'Data Input'!K238","v":0}]
["Make sure to put these skipped payments in the correct order chronologically.  For example, if there"]
["is a Free Rent period for payment 13, then list the first 12 payments on the first line, then"]
["line #2 as $0 (col B) and 1 (col C), then line #3 as the continuing payments after the Free Rent period."]
["e - If a Bonus payment from the lessor is included in the contract, subtract that amount from the payment closest to the proper"]
["chronological period (as described in d above).  This may cause that payment amount to be negative."]
["f - Use the blue box below to describe how payments change over time.  For example - (a) Payment increases 5% every 10 yrs;"]
["(b) Appraisal to be completed every 25 years; or (c) Payment recalculated every 5 yrs based on CPI, etc."]
["Also describe payment frequency if Less Often than Annually."]
[]
[]
[]
["g - If payments are Less Often than Annually,indicate this in the Payment Schedule above by listing first payment on the first row (1 in"]
["col C), then the 2nd row should show how many years to be skipped in col C ($0 in col B), then the 3rd row will show the 2nd payment."]
["Repeat until all payments & all years are represented in the Payment Schdl (total in col C should tie to total yrs of lease term & cell B4)."]
["h - If there are not enough lines in the table above, use the table below to input the additional payment amounts, and the totals from"]
["the additional table will automatically be added to the Payment Schedule above."]
["i - Verify that the total # of payments in cell B4 is the same as the sum of col C (cell C16)."]
[]
["Additional Lease Payment Receivable Lines (if needed)","Amount","# of Payments"]
["Payment Amount #5 & # of Payments at this amount",0,0]
["Payment Amount #6 & # of Payments at this amount",0,0]
["Payment Amount #7 & # of Payments at this amount",0,0]
["Payment Amount #8 & # of Payments at this amount",0,0]
["Payment Amount #9 & # of Payments at this amount",0,0]
["Payment Amount #10 & # of Payments at this amount",0,0]
["Payment Amount #11 & # of Payments at this amount",0,0]
["Payment Amount #12 & # of Payments at this amount",0,0]
["Payment Amount #13 & # of Payments at this amount",0,0]
["Payment Amount #14 & # of Payments at this amount",0,0]
["Payment Amount #15 & # of Payments at this amount",0,0]
["Payment Amount #16 & # of Payments at this amount",0,0]
["Payment Amount #17 & # of Payments at this amount",0,0]
["Payment Amount #18 & # of Payments at this amount",0,0]
["Payment Amount #19 & # of Payments at this amount",0,0]
["Payment Amount #20 & # of Payments at this amount",0,0]
["Payment Amount #21 & # of Payments at this amount",0,0]
["Payment Amount #22 & # of Payments at this amount",0,0]
["Payment Amount #23 & # of Payments at this amount",0,0]
["Payment Amount #24 & # of Payments at this amount",0,0]
["Payment Amount #25 & # of Payments at this amount",0,0]
["Total Add'l Lease Payment Amts (will automatically be added to the Schedule above)",{"$f":"(B67*C67)+(B68*C68)+(B69*C69)+(B70*C70)+(B71*C71)+(B72*C72)+(B73*C73)+(B74*C74)+(B75*C75)+(B76*C76)+(B77*C77)+(B78*C78)+(B79*C79)+(B80*C80)+(B81*C81)+(B82*C82)+(B83*C83)+(B84*C84)+(B85*C85)+(B86*C86)+(B87*C87)","v":0},{"$f":"SUM(C67:C87)","v":0}]
[]
["Step 2 - Fill out the \"Other Payment Considerations\" section (starting on row 18) ONLY if instructed to do so on the Data Input tab"]
["(responses from Data Input tab are shown in col D)."]
["a - The Residual Value Guarantee line should only have an amount listed in Col B if it is Fixed In-Substance and not reliant on a future"]
["consideration (i.e. FMV of leased asset)."]
["b - The Allowance for Uncollectible Leases line should only have an amount listed in col C if economic circumstances, lessee"]
["creditworthiness, and historic information indicate a need for an allowance to be calculated.  This amount is listed in col C because"]
["it will not be calculated as part of the Present Value of the Lease Receivable, but will instead reduce the Present Value after it is"]
["calculated as a contra-receivable."]
[]
["Steps 3 - 8 are OPTIONAL (calculation of Present Value and Amortization Tables)"]
["Step 3 - Click the Macro button below to Generate the first 2 columns of the Present Value (PV) Table."]
[]
[]
["Step 4 - Using the Payment Receivable Schedule filled out in Steps 1 & 2, fill in the Payment Amounts into col F of the PV Table."]
["a - If there are 12 payments for the 1st payment amount, and 6 payments for the 2nd payment amount, list the 1st amount in the"]
["first 12 rows of the Table, then the 2nd amount for the next 6 rows, and do the same for the remaining payment amounts listed"]
["in the Payment Schedule until all the payments are filled in on the Table."]
["b - Make sure not to skip any Free Rent periods.  If the Payment Schedule indicates the 13th payment is $0, then row 13 of the"]
["Table should be $0, same as the Payment Schedule."]
["c - If there are any amounts listed for \"Other Payment Considerations\", add it to the final payment.  For example, if the final"]
["payment is $20,000, and there is a Residual Value Guarantee listed for $5,000, then the final payment in the Table should be $25,000."]
["d - Check to make sure that the sum of all the payments entered into col F of the Table is the same as the Total Undiscounted Cash"]
["Flows in cell B23."]
[]
["Step 5 - Click the Macro button below to Calculate Net Present Value and Generate the PV and Amortization Tables."]
[]
[]
[]
["Step 6 - Check data for accuracy:"]
["a - Check the date of the final payment in the Amortization Table and compare to Lease End Date in cell B8.  Make sure the final"]
["payment date is reasonable in comparison to the Lease End Date (within same month if payments are Monthly, within the final"]
["quarter if Quarterly, etc)."]
["b - If payments change (there are amounts in Payment Amount #2 + rows), then check the dates the amounts change in the"]
["Amort Table (columns K & M) to make sure the payments change on the correct dates as per the Lease Contract."]
["c - If 6a and 6b are BOTH correct, skip to Step 8 (Do NOT click the Start Over Macro Button)."]
["d - If 6a or 6b does not appear to be correct:"]
["i - Double-check the Instructions above (Steps 1 - 6), including the check for # of payments in 1i & check for Table payments in 4d."]
["ii - Double-check cells B2-B8 by reviewing the Lease Contract.  These cells automatically filled based on answers in the Data Input"]
["tab.  Make any necessary corrections in the Data Input tab (NOT in cells B2-B8) - the corresponding question #s are referenced above."]
["iii - Double-Check the Payment Schedule and Other Payment Considerations sections.  Compare back to the Lease contract to"]
["verify, and correct as necessary."]
["e - Once corrections have been made, click the Macro button below to Delete the PV & Amortization Tables."]
[]
[]
[]
["Step 7 - Repeat Steps 3-6 as needed until all checks (1i, 4d, 6a, 6b, and 6di-6diii) are correct."]
[]
["Step 8 - See Net Present Value calculated in cell B25 for the Lease Receivable and the Deferred Inflow of Resources in cell B28."]
["Also, see Present Value Table in columns E-G,"]
["and Amortization Table in columns J-P."]

{"sheet":"Lease 10 - PV Calc","index":14,"n_rows":139,"n_cols":4,"rows_kept":139,"cut":false,"hidden":false,"merged":[[46,2,49,2],[55,0,57,2]]}
["Present Value Calculations tab - Lease 10 (column L)","Contract #",{"$f":"'Data Input'!L58","v":0}]
["Periodic Interest Rate (Section VII, #27-28 from Data Input tab)",{"$f":"'Data Input'!L266","v":0}]
["Cash Flows at Beginning or End (Section V, #19)",{"$f":"'Data Input'!L179","v":0},"Important:"]
["Number of payments (Section V, #18)",{"$f":"'Data Input'!L172","v":0},"Do not insert/delete/move"]
["Frequency of payments (Section V, #17)",{"$f":"'Data Input'!L166","v":0},"cells B2:B8"]
["Date of first payment (Section V, #20)",{"$f":"'Data Input'!L185","v":"00:00:00"},"(macros depend on them)"]
["Lease Start Date (Section V, #12)",{"$f":"'Data Input'!L150","v":"00:00:00"}]
["Lease End Date including Extensions (Section V, #15)",{"$f":"'Data Input'!L161","v":"00:00:00"}]
[]
["Fixed Lease Payment Receivable Schedule (Section VI, #21 & see instructions below):","Amount","# of Payments"]
["Payment Amount #1 & # of Payments at this amount",0,0]
["Payment Amount #2 & # of Payments at this amount",0,0]
["Payment Amount #3 & # of Payments at this amount",0,0]
["Payment Amount #4 & # of Payments at this amount",0,0]
["Totals from add'l table below (if needed)",{"$f":"B88","v":0},{"$f":"C88","v":0}]
["Total Lease Payments (sum of all payment amounts * # of payments)",{"$f":"(B11*C11)+(B12*C12)+(B13*C13)+(B14*C14)+(B15)","v":0},{"$f":"SUM(C11:C15)","v":0}]
[null,null,null,"Response per"]
["Other Payment Considerations:","Residual Value Guar","Allow for Uncollectible Amt","Data Input tab"]
["Residual Value Guarantee if Fixed-in-Substance (Section VI, #24a & b)",0,null,{"$f":"'Data Input'!L224","v":0}]
["Allowance for Uncollectible Leases (Section VI, #26)"]
["For example, could be calculated as a percentage of the total lease pmt rcvbl above",null,0,{"$f":"'Data Input'!L242","v":0}]
["Total Other Payment Considerations",{"$f":"SUM(B19:B21)","v":0}]
["Total Undiscounted Cash Flows (Total Payments + Other Considerations)",{"$f":"B16+B22","v":0}]
[null,null,"Important:"]
["Net Present Value (calculated after Macros below run)",{"$f":"SUM(G:G)","v":0},"Do not insert/delete/move"]
[null,null,"NPV must be cell B25"]
["Additions/Subtractions for Deferred Inflow of Resources (Section IV, #9-11)",{"$f":"'Data Input'!L124-'Data Input'!L127","v":0},"(macros depend on it)"]
["Deferred Inflow of Resources (calculated after Macros below run)",{"$f":"B25+B27","v":0}]
[]
["The Agency is not required to calculate the Present Value and/or enable Macros,"]
["but Steps 1 & 2 of the instructions below are REQUIRED to be completed."]
["After completing Steps 1 & 2, if desired to calculate the Present Value, complete Steps 3 - 8:"]
[]
["Note 1:  First make sure your Excel settings are correct -","See How to Enable Macros tab"]
["Note 2:  Please do not Insert, Delete, or Move any cells, columns or rows as this could cause the Macros to fail."]
["Note 3:  The Blue Cells in columns B & C are for manual input, and the Present Value Table will need to be adjusted in column F."]
["The Orange cells in columns B & C will automatically fill.  Also, the Present Value and Amortization Tables will be generated with the"]
["Macro buttons.  Please do not make changes to the orange cells or anywhere within the Tables (except column F)."]
[]
["Step 1 - Fill out the \"Fixed Lease Payment Receivable Schedule\" section above (starting on row 10)."]
["a - If payments escalate over time, list beginning payment amount & # of payments to be received at that amount, then move to line #2"]
["and list the next payment amount & # of payments at that amount, etc."]
["b - If an extension is deemed Reasonably Certain to be exercised, but the amount is listed as \"negotiable\", then use the lease"]
["payment amount just prior to the date of extension for those unknown amounts."]
["c - If a future payment is variable based on an index or interest rate, then calculate those future payments using the current index or rate."]
["d - If there is an Abated or Free Rent period (skipped payment) indicated in the lease contract,",null,"Desc of Lease Incentives"]
["indicate that with a $0 payment amount (col B) & the number of payments to be skipped (col C).",null,{"$f":"'Data Input'!L238","v":0}]
["Make sure to put these skipped payments in the correct order chronologically.  For example, if there"]
["is a Free Rent period for payment 13, then list the first 12 payments on the first line, then"]
["line #2 as $0 (col B) and 1 (col C), then line #3 as the continuing payments after the Free Rent period."]
["e - If a Bonus payment from the lessor is included in the contract, subtract that amount from the payment closest to the proper"]
["chronological period (as described in d above).  This may cause that payment amount to be negative."]
["f - Use the blue box below to describe how payments change over time.  For example - (a) Payment increases 5% every 10 yrs;"]
["(b) Appraisal to be completed every 25 years; or (c) Payment recalculated every 5 yrs based on CPI, etc."]
["Also describe payment frequency if Less Often than Annually."]
[]
[]
[]
["g - If payments are Less Often than Annually,indicate this in the Payment Schedule above by listing first payment on the first row (1 in"]
["col C), then the 2nd row should show how many years to be skipped in col C ($0 in col B), then the 3rd row will show the 2nd payment."]
["Repeat until all payments & all years are represented in the Payment Schdl (total in col C should tie to total yrs of lease term & cell B4)."]
["h - If there are not enough lines in the table above, use the table below to input the additional payment amounts, and the totals from"]
["the additional table will automatically be added to the Payment Schedule above."]
["i - Verify that the total # of payments in cell B4 is the same as the sum of col C (cell C16)."]
[]
["Additional Lease Payment Receivable Lines (if needed)","Amount","# of Payments"]
["Payment Amount #5 & # of Payments at this amount",0,0]
["Payment Amount #6 & # of Payments at this amount",0,0]
["Payment Amount #7 & # of Payments at this amount",0,0]
["Payment Amount #8 & # of Payments at this amount",0,0]
["Payment Amount #9 & # of Payments at this amount",0,0]
["Payment Amount #10 & # of Payments at this amount",0,0]
["Payment Amount #11 & # of Payments at this amount",0,0]
["Payment Amount #12 & # of Payments at this amount",0,0]
["Payment Amount #13 & # of Payments at this amount",0,0]
["Payment Amount #14 & # of Payments at this amount",0,0]
["Payment Amount #15 & # of Payments at this amount",0,0]
["Payment Amount #16 & # of Payments at this amount",0,0]
["Payment Amount #17 & # of Payments at this amount",0,0]
["Payment Amount #18 & # of Payments at this amount",0,0]
["Payment Amount #19 & # of Payments at this amount",0,0]
["Payment Amount #20 & # of Payments at this amount",0,0]
["Payment Amount #21 & # of Payments at this amount",0,0]
["Payment Amount #22 & # of Payments at this amount",0,0]
["Payment Amount #23 & # of Payments at this amount",0,0]
["Payment Amount #24 & # of Payments at this amount",0,0]
["Payment Amount #25 & # of Payments at this amount",0,0]
["Total Add'l Lease Payment Amts (will automatically be added to the Schedule above)",{"$f":"(B67*C67)+(B68*C68)+(B69*C69)+(B70*C70)+(B71*C71)+(B72*C72)+(B73*C73)+(B74*C74)+(B75*C75)+(B76*C76)+(B77*C77)+(B78*C78)+(B79*C79)+(B80*C80)+(B81*C81)+(B82*C82)+(B83*C83)+(B84*C84)+(B85*C85)+(B86*C86)+(B87*C87)","v":0},{"$f":"SUM(C67:C87)","v":0}]
[]
["Step 2 - Fill out the \"Other Payment Considerations\" section (starting on row 18) ONLY if instructed to do so on the Data Input tab"]
["(responses from Data Input tab are shown in col D)."]
["a - The Residual Value Guarantee line should only have an amount listed in Col B if it is Fixed In-Substance and not reliant on a future"]
["consideration (i.e. FMV of leased asset)."]
["b - The Allowance for Uncollectible Leases line should only have an amount listed in col C if economic circumstances, lessee"]
["creditworthiness, and historic information indicate a need for an allowance to be calculated.  This amount is listed in col C because"]
["it will not be calculated as part of the Present Value of the Lease Receivable, but will instead reduce the Present Value after it is"]
["calculated as a contra-receivable."]
[]
["Steps 3 - 8 are OPTIONAL (calculation of Present Value and Amortization Tables)"]
["Step 3 - Click the Macro button below to Generate the first 2 columns of the Present Value (PV) Table."]
[]
[]
["Step 4 - Using the Payment Receivable Schedule filled out in Steps 1 & 2, fill in the Payment Amounts into col F of the PV Table."]
["a - If there are 12 payments for the 1st payment amount, and 6 payments for the 2nd payment amount, list the 1st amount in the"]
["first 12 rows of the Table, then the 2nd amount for the next 6 rows, and do the same for the remaining payment amounts listed"]
["in the Payment Schedule until all the payments are filled in on the Table."]
["b - Make sure not to skip any Free Rent periods.  If the Payment Schedule indicates the 13th payment is $0, then row 13 of the"]
["Table should be $0, same as the Payment Schedule."]
["c - If there are any amounts listed for \"Other Payment Considerations\", add it to the final payment.  For example, if the final"]
["payment is $20,000, and there is a Residual Value Guarantee listed for $5,000, then the final payment in the Table should be $25,000."]
["d - Check to make sure that the sum of all the payments entered into col F of the Table is the same as the Total Undiscounted Cash"]
["Flows in cell B23."]
[]
["Step 5 - Click the Macro button below to Calculate Net Present Value and Generate the PV and Amortization Tables."]
[]
[]
[]
["Step 6 - Check data for accuracy:"]
["a - Check the date of the final payment in the Amortization Table and compare to Lease End Date in cell B8.  Make sure the final"]
["payment date is reasonable in comparison to the Lease End Date (within same month if payments are Monthly, within the final"]
["quarter if Quarterly, etc)."]
["b - If payments change (there are amounts in Payment Amount #2 + rows), then check the dates the amounts change in the"]
["Amort Table (columns K & M) to make sure the payments change on the correct dates as per the Lease Contract."]
["c - If 6a and 6b are BOTH correct, skip to Step 8 (Do NOT click the Start Over Macro Button)."]
["d - If 6a or 6b does not appear to be correct:"]
["i - Double-check the Instructions above (Steps 1 - 6), including the check for # of payments in 1i & check for Table payments in 4d."]
["ii - Double-check cells B2-B8 by reviewing the Lease Contract.  These cells automatically filled based on answers in the Data Input"]
["tab.  Make any necessary corrections in the Data Input tab (NOT in cells B2-B8) - the corresponding question #s are referenced above."]
["iii - Double-Check the Payment Schedule and Other Payment Considerations sections.  Compare back to the Lease contract to"]
["verify, and correct as necessary."]
["e - Once corrections have been made, click the Macro button below to Delete the PV & Amortization Tables."]
[]
[]
[]
["Step 7 - Repeat Steps 3-6 as needed until all checks (1i, 4d, 6a, 6b, and 6di-6diii) are correct."]
[]
["Step 8 - See Net Present Value calculated in cell B25 for the Lease Receivable and the Deferred Inflow of Resources in cell B28."]
["Also, see Present Value Table in columns E-G,"]
["and Amortization Table in columns J-P."]

{"sheet":"VLookup","index":15,"n_rows":29,"n_cols":4,"rows_kept":29,"cut":false,"hidden":false,"merged":[]}
["Asset Type","For",null,"Useful Life in Months"]
["Constructed Building ","Office Space",{"$f":"CONCATENATE(A2,\" - \",B2)","v":"Constructed Building  - Office Space"},480]
["Manufactured Building (non-permanent)","Office Space","Manufactured Building (non-permanent) - Office Space",300]
["Vehicles","Aircraft","Vehicles - Aircraft",180]
["Vehicles","Heavy Duty Truck","Vehicles - Heavy Duty Truck",84]
["Vehicles","Regular truck/car","Vehicles - Regular truck/car",60]
["Equipment","Furniture","Equipment - Furniture",60]
["Equipment","IT Equipment","Equipment - IT Equipment",60]
["Equipment","Telecommunications","Equipment - Telecommunications",60]
["Equipment","Other Office Equipment","Equipment - Other Office Equipment",60]
["Land",null,"Land","N/A"]
[null,null,"Right-of-way","N/A"]
[]
["Fixed Asset Catalog Description",null,"Useful Life in Months"]
["Leased Constructed Buildings (Office Space) ",null,480]
["Leased Buildings: Prefabricated (Office Space)",null,300]
["Leased Mainframe Computer",null,60]
["Leased Servers",null,60]
["Leased Desktop Computer",null,60]
["Leased Multifunction (print/scan/fax/copy) workgroup printer",null,60]
["Leased Airplane",null,180]
["Leased Automobiles & Station Wagons",null,60]
["Leased Trucks (Heavy)",null,84]
["Leased Mass Transportation: Transit Bus",null,84]
["Leased Radio, Sound and Telecomm. Equipment",null,60]
["Leased Land Improvements",null,480]
["Leased Improvements Other than Land & Building Improvements",null,180]
["Leased Tangible Rights of Way ",null,"Use contract term"]
["Leased Land ",null,"Use contract term"]

{"sheet":"Drop Down List","index":16,"n_rows":49,"n_cols":1,"rows_kept":49,"cut":false,"hidden":false,"merged":[]}
[]
["Asset Type"]
["Land"]
["Building"]
["Equipment"]
["Other"]
[]
["Payment System"]
["AFIS"]
["APP"]
[]
["Yes / No / N/A"]
["Yes"]
["No"]
["N/A"]
[]
[]
["Payment frequency"]
["Monthly"]
["Quarterly"]
["Semi-annually"]
["Annually"]
[]
["Payment B or E"]
["Begin"]
["End"]
[]
["Payments Equal?"]
["Yes"]
["No - Fill out PV Calc Tab"]
["N/A"]
[]
["Purchase Option / Termination Penalty/Residual Value Guarantee?"]
["Yes - Fill out PV Calc Tab"]
["No"]
["N/A"]
[]
["single / divided COA"]
["Single COA"]
["Divided - Fill out Gen Extra Info Tab"]
[]
["Type of Division"]
["Specific $ Amount Split"]
["Percentage (%) Split"]
[]
["Termination Option"]
["Yes - use Expected End Date for Lease End Date"]
["No"]
["N/A"]